{"text_format":"1","workbook":"xlsx","n_sheets":4,"sheets":["راهنما","Data","Anbar","Sett"],"not_rendered":{"charts":0,"images":3,"macros":1,"external_links":0,"defined_names":0,"comments":1,"pivot_tables":0},"unopened":[],"bounds":{"document_bytes":16777216,"sheet_cells":100000,"rows_first":2000,"rows_last":500,"rows_between":2000,"halvings":0,"cell_chars":16384,"cell_head_chars":4096},"cells_cut":0,"cells_raw":0,"read":"whole","date_system":"1900"}

{"sheet":"راهنما","index":0,"n_rows":30,"n_cols":11,"rows_kept":30,"cut":false,"hidden":false,"merged":[[28,1,28,19],[10,1,10,19],[29,1,31,19],[21,1,21,19],[22,1,22,19],[23,1,23,19],[24,1,24,19],[25,1,25,19],[27,1,27,19],[17,1,17,19],[18,1,18,19],[19,1,19,19],[20,1,20,19],[14,1,14,19],[15,1,15,19],[16,1,16,19],[4,6,6,8],[4,10,6,12],[11,1,11,19],[12,1,12,19],[13,1,13,19]]}
[]
[]
[]
[]
[null,null,null,null,null,null,"كد فايل :   1103",null,null,null,"نسخه :    1.1"]
[]
[]
[]
[]
[]
[null,"توضيحات عمومي"]
[null," * در ابتدا لازم است اعلام نمائيم كه از انتخاب ما توسط شما بسيار خرسنديم و اميدواريم بتوانيم همراه خوبي برايتان بوده و در ساير موارد نيز افتخار ميزباني سفارشات شما مخاطب گرامي را داشته باشيم."]
[null," * قبل از شروع به استفاده از برنامه، لطفا فونتهاي ضميمه را كه دريافت كرده ايد، نصب نمائيد و همچنين يك كپي از فايل خام تهيه كنيد تا در صورت بروز هر گونه مشكل نسخه اوليه و صحيح در اختيار شما باشد."]
[null," * اين فايل با اكسل 2010 طراحي شده و در آن از ماكروها و زبان VB در اكسل استفاده شده است ! لذا بايد درصورت فعال نبودن اين قابليت آن را بر روي نرم افزار اكسل خود فعال نماييد. بدين منظور توضيحات"]
[null," لازم از طريق كليد سوالات متداول در بالاي همين صفحه در دسترس است. در صورت وجود هرگونه ابهام يا سوال يا مشاهده نقصي در برنامه دريافتي مي توانيد از طريق ايميل مستقيم ما كه در بالاي صفحه مشاهده"]
[null,"مي نمائيد ، با ذكر كد فايل و شماره نسخه آن با ما در ارتباط باشيد. در اسرع وقت و با تمام توان پاسخگوي شما همراه گرامي خواهيم بود."]
[null," * دقت داشته باشيد كه فايل هاي رايگان امكان انجام  تغييرات در صفحات موجود و تنظيمات آنها و يا افزودن گزينه ها و موارد جديد در فرم ها و جداول و گزارشات را ندارند !!"]
[null,"* اگر اين برنامه نيازهاي شما را بر طرف نمي كند و خواهان ايجاد تغييرات و اختصاصي سازي آن براي مناسبات خود هستيد ، با ما تماس بگيريد تا با هزينه اي اندك به صورت سفارشي و اختصاصي "]
[null,"آن را براي شما باز طراحي كنيم ! همچنين مي توانيد رمز تغيير در صفحات و پسورد كدهاي برنامه را با حداقل هزينه ( كه براي هر برنامه متفاوت است ) جهت انجام تغييرات در آن داشته باشيد !"]
[null,"  نكته مهم : در همه صفحات خانه هايي كه در گوشه بالا سمت چپ آنها مثلث قرمز رنگ كوچكي مشاهده مي شود، اگر موس را بر روي آنها نگه داريد راهنمايي و توضيحات لازمه جهت نحوه ورود اطلاعات"]
[null,"  و تكميل آن ستون يا سطر يا جدول و يا نحوه محاسبه مقدار درون آن خانه به صورت كامنت آورده شده است ! حتما همه اين كامنت ها را قبل از استفاده مطالعه كنيد تا كار با برنامه برايتان راحت تر باشد !"]
[null,"توضيحات اختصاصي"]
[null,"اين برنامه جهت محاسبه قيمت تمام شده محصولات يا خدمات شما با توجه به منابع مصرفي كه شامل 6 گروه اصلي است طراحي و تدوين شده است ! در ابتدا لازم است در صفحه Anbar محصولات يا كالاهاي خود"]
[null,"را تعريف كنيد و بعد در صفحه تنظيمات يا Sett شش منبع اصلي موثر در توليد را با توجه به مناسبات خود تكميل كرده و هر كدام را كه در توليد خود داريد تعريف نمائيد !"]
[null,"براي محاسبه قيمت تمام شده محصول بايد در صفحه Data بر روي فرم تخصيص كليك كرده و پس از باز شدن براي هر محصول همه منابعي كه استفاده مي كند را تعريف و ثبت كنيد !"]
[null,"در نهايت وقتي براي همه محصولات منابع مصرفي انها را تعريف و ثبت كرديد ، در همان صفحه Anbar در جلو هر محصول قيمت تمام شده آنرا كه از مجموع هزينه هاي منابع شش گانه حاصل شده مشاهده مي كنيد"]
[]
[]
[null,"                                    * * *  بهاي استفاده رايگان از اين برنامه در صورت تمايل هديه 14 صلوات جهت سلامتي و ظهور مولا و سرورمان حضرت حجت عجل الله تعالي فرجه الشريف مي باشد ! * * *"]
[null,"                              اي پادشه خوبان داد از غم تنهايي            دل بي تو به جان آمد وقت است كه باز آيي . . ."]

{"sheet":"Data","index":1,"n_rows":13,"n_cols":18,"rows_kept":13,"cut":false,"hidden":false,"merged":[[5,1,5,13],[0,0,0,1]]}
[]
[]
[]
[]
[null,null,{"$f":"IF(B5>0,VLOOKUP(B5,mahsolat[],2,FALSE),0)","v":0},{"$f":"IF(B5>0,VLOOKUP(B5,mahsolat[],3,FALSE),0)","v":0},{"$f":"COUNTA(data[كد])+8","v":8},null,{"$f":"IF(AND(H5=1,F5>0),VLOOKUP(F5,mavad[],2,FALSE),IF(AND(H5=2,F5>0),VLOOKUP(F5,enerzhi[],2,FALSE),IF(AND(H5=3,F5>0),VLOOKUP(F5,works[],2,FALSE),IF(AND(H5=4,F5>0),VLOOKUP(F5,ensani[],2,FALSE),IF(AND(H5=5,F5>0),VLOOKUP(F5,basteh[],2,FALSE),IF(AND(H5=6,F5>0),VLOOKUP(F5,sayer[],2,FALSE),0))))))","v":0},null,{"$f":"IF(COUNTIF(Q8:Q13,H5)>0,VLOOKUP(H5,Q8:R13,2,FALSE),0)","v":0},{"$f":"IF(AND(H5=1,F5>0),VLOOKUP(F5,mavad[],3,FALSE),IF(AND(H5=2,F5>0),VLOOKUP(F5,enerzhi[],3,FALSE),IF(AND(H5=3,F5>0),VLOOKUP(F5,works[],3,FALSE),IF(AND(H5=4,F5>0),VLOOKUP(F5,ensani[],3,FALSE),IF(AND(H5=5,F5>0),VLOOKUP(F5,basteh[],3,FALSE),IF(AND(H5=6,F5>0),VLOOKUP(F5,sayer[],3,FALSE),0))))))","v":0},{"$f":"IF(AND(H5=1,F5>0),VLOOKUP(F5,mavad[],4,FALSE),IF(AND(H5=2,F5>0),VLOOKUP(F5,enerzhi[],4,FALSE),IF(AND(H5=3,F5>0),VLOOKUP(F5,works[],4,FALSE),IF(AND(H5=4,F5>0),VLOOKUP(F5,ensani[],4,FALSE),IF(AND(H5=5,F5>0),VLOOKUP(F5,basteh[],4,FALSE),IF(AND(H5=6,F5>0),VLOOKUP(F5,sayer[],4,FALSE),0))))))","v":0},null,{"$f":"K5*L5","v":0},{"$f":"IF(B5>0,VLOOKUP(B5,mahsolat[],4,FALSE),0)","v":0}]
[null,"تخصيص منابع به محصولات توليدي جهت تعيين قيمت تمام شده كالا"]
[null,"كد","نام محصول","واحد","گروه","منبع","نام منبع","گ","گروه منبع","واحد م","في واحد","مقدار","مبلغ","توضيحات",null,null,"كد","عنوان"]
[null,null,null,null,null,null,null,null,null,null,null,null,null,null,null,null,1,"ماده مصرفي"]
[null,null,null,null,null,null,null,null,null,null,null,null,null,null,null,null,2,"انرژي مصرفي"]
[null,null,null,null,null,null,null,null,null,null,null,null,null,null,null,null,3,"كار انجام شده"]
[null,null,null,null,null,null,null,null,null,null,null,null,null,null,null,null,4,"نيروي انساني"]
[null,null,null,null,null,null,null,null,null,null,null,null,null,null,null,null,5,"بسته بندي"]
[null,null,null,null,null,null,null,null,null,null,null,null,null,null,null,null,6,"ساير هزينه ها"]

{"sheet":"Anbar","index":2,"n_rows":156,"n_cols":13,"rows_kept":156,"cut":false,"hidden":false,"merged":[[4,1,4,12],[0,0,0,1]]}
[]
[]
[]
[null,null,null,null,null,null,null,1,2,3,4,5,6]
[null,"تعريف محصولات و خدمات شما ، مشاهده قيمت تمام شده آنها"]
[null,"كد","نام محصول","واحد","گروه","دسته","قيمت تمام شده","مواد مصرفي","انرژي","انجام كار","نيروي انساني","بسته بندي","ساير هزينه ها"]
[null,1,"محصول شماره يك","عدد","گروه يك","دسته يك",{"$f":"SUM(mahsolat[[#This Row],[مواد مصرفي]:[ساير هزينه ها]])","v":0},{"$f":"SUMIFS(data[مبلغ],data[كد],mahsolat[[#This Row],[كد]],data[گ],H$4)","v":0},{"$f":"SUMIFS(data[مبلغ],data[كد],mahsolat[[#This Row],[كد]],data[گ],I$4)","v":0},{"$f":"SUMIFS(data[مبلغ],data[كد],mahsolat[[#This Row],[كد]],data[گ],J$4)","v":0},{"$f":"SUMIFS(data[مبلغ],data[كد],mahsolat[[#This Row],[كد]],data[گ],K$4)","v":0},{"$f":"SUMIFS(data[مبلغ],data[كد],mahsolat[[#This Row],[كد]],data[گ],L$4)","v":0},{"$f":"SUMIFS(data[مبلغ],data[كد],mahsolat[[#This Row],[كد]],data[گ],M$4)","v":0}]
[null,2,"محصول شماره دو","عدد","گروه دو","دسته يك",{"$f":"SUM(mahsolat[[#This Row],[مواد مصرفي]:[ساير هزينه ها]])","v":0},{"$f":"SUMIFS(data[مبلغ],data[كد],mahsolat[[#This Row],[كد]],data[گ],H$4)","v":0},{"$f":"SUMIFS(data[مبلغ],data[كد],mahsolat[[#This Row],[كد]],data[گ],I$4)","v":0},{"$f":"SUMIFS(data[مبلغ],data[كد],mahsolat[[#This Row],[كد]],data[گ],J$4)","v":0},{"$f":"SUMIFS(data[مبلغ],data[كد],mahsolat[[#This Row],[كد]],data[گ],K$4)","v":0},{"$f":"SUMIFS(data[مبلغ],data[كد],mahsolat[[#This Row],[كد]],data[گ],L$4)","v":0},{"$f":"SUMIFS(data[مبلغ],data[كد],mahsolat[[#This Row],[كد]],data[گ],M$4)","v":0}]
[null,3,"محصول شماره سه","بسته","گروه يك","دسته دو",{"$f":"SUM(mahsolat[[#This Row],[مواد مصرفي]:[ساير هزينه ها]])","v":0},{"$f":"SUMIFS(data[مبلغ],data[كد],mahsolat[[#This Row],[كد]],data[گ],H$4)","v":0},{"$f":"SUMIFS(data[مبلغ],data[كد],mahsolat[[#This Row],[كد]],data[گ],I$4)","v":0},{"$f":"SUMIFS(data[مبلغ],data[كد],mahsolat[[#This Row],[كد]],data[گ],J$4)","v":0},{"$f":"SUMIFS(data[مبلغ],data[كد],mahsolat[[#This Row],[كد]],data[گ],K$4)","v":0},{"$f":"SUMIFS(data[مبلغ],data[كد],mahsolat[[#This Row],[كد]],data[گ],L$4)","v":0},{"$f":"SUMIFS(data[مبلغ],data[كد],mahsolat[[#This Row],[كد]],data[گ],M$4)","v":0}]
[null,4,null,null,null,null,{"$f":"SUM(mahsolat[[#This Row],[مواد مصرفي]:[ساير هزينه ها]])","v":0},{"$f":"SUMIFS(data[مبلغ],data[كد],mahsolat[[#This Row],[كد]],data[گ],H$4)","v":0},{"$f":"SUMIFS(data[مبلغ],data[كد],mahsolat[[#This Row],[كد]],data[گ],I$4)","v":0},{"$f":"SUMIFS(data[مبلغ],data[كد],mahsolat[[#This Row],[كد]],data[گ],J$4)","v":0},{"$f":"SUMIFS(data[مبلغ],data[كد],mahsolat[[#This Row],[كد]],data[گ],K$4)","v":0},{"$f":"SUMIFS(data[مبلغ],data[كد],mahsolat[[#This Row],[كد]],data[گ],L$4)","v":0},{"$f":"SUMIFS(data[مبلغ],data[كد],mahsolat[[#This Row],[كد]],data[گ],M$4)","v":0}]
[null,5,null,null,null,null,{"$f":"SUM(mahsolat[[#This Row],[مواد مصرفي]:[ساير هزينه ها]])","v":0},{"$f":"SUMIFS(data[مبلغ],data[كد],mahsolat[[#This Row],[كد]],data[گ],H$4)","v":0},{"$f":"SUMIFS(data[مبلغ],data[كد],mahsolat[[#This Row],[كد]],data[گ],I$4)","v":0},{"$f":"SUMIFS(data[مبلغ],data[كد],mahsolat[[#This Row],[كد]],data[گ],J$4)","v":0},{"$f":"SUMIFS(data[مبلغ],data[كد],mahsolat[[#This Row],[كد]],data[گ],K$4)","v":0},{"$f":"SUMIFS(data[مبلغ],data[كد],mahsolat[[#This Row],[كد]],data[گ],L$4)","v":0},{"$f":"SUMIFS(data[مبلغ],data[كد],mahsolat[[#This Row],[كد]],data[گ],M$4)","v":0}]
[null,6,null,null,null,null,{"$f":"SUM(mahsolat[[#This Row],[مواد مصرفي]:[ساير هزينه ها]])","v":0},{"$f":"SUMIFS(data[مبلغ],data[كد],mahsolat[[#This Row],[كد]],data[گ],H$4)","v":0},{"$f":"SUMIFS(data[مبلغ],data[كد],mahsolat[[#This Row],[كد]],data[گ],I$4)","v":0},{"$f":"SUMIFS(data[مبلغ],data[كد],mahsolat[[#This Row],[كد]],data[گ],J$4)","v":0},{"$f":"SUMIFS(data[مبلغ],data[كد],mahsolat[[#This Row],[كد]],data[گ],K$4)","v":0},{"$f":"SUMIFS(data[مبلغ],data[كد],mahsolat[[#This Row],[كد]],data[گ],L$4)","v":0},{"$f":"SUMIFS(data[مبلغ],data[كد],mahsolat[[#This Row],[كد]],data[گ],M$4)","v":0}]
[null,7,null,null,null,null,{"$f":"SUM(mahsolat[[#This Row],[مواد مصرفي]:[ساير هزينه ها]])","v":0},{"$f":"SUMIFS(data[مبلغ],data[كد],mahsolat[[#This Row],[كد]],data[گ],H$4)","v":0},{"$f":"SUMIFS(data[مبلغ],data[كد],mahsolat[[#This Row],[كد]],data[گ],I$4)","v":0},{"$f":"SUMIFS(data[مبلغ],data[كد],mahsolat[[#This Row],[كد]],data[گ],J$4)","v":0},{"$f":"SUMIFS(data[مبلغ],data[كد],mahsolat[[#This Row],[كد]],data[گ],K$4)","v":0},{"$f":"SUMIFS(data[مبلغ],data[كد],mahsolat[[#This Row],[كد]],data[گ],L$4)","v":0},{"$f":"SUMIFS(data[مبلغ],data[كد],mahsolat[[#This Row],[كد]],data[گ],M$4)","v":0}]
[null,8,null,null,null,null,{"$f":"SUM(mahsolat[[#This Row],[مواد مصرفي]:[ساير هزينه ها]])","v":0},{"$f":"SUMIFS(data[مبلغ],data[كد],mahsolat[[#This Row],[كد]],data[گ],H$4)","v":0},{"$f":"SUMIFS(data[مبلغ],data[كد],mahsolat[[#This Row],[كد]],data[گ],I$4)","v":0},{"$f":"SUMIFS(data[مبلغ],data[كد],mahsolat[[#This Row],[كد]],data[گ],J$4)","v":0},{"$f":"SUMIFS(data[مبلغ],data[كد],mahsolat[[#This Row],[كد]],data[گ],K$4)","v":0},{"$f":"SUMIFS(data[مبلغ],data[كد],mahsolat[[#This Row],[كد]],data[گ],L$4)","v":0},{"$f":"SUMIFS(data[مبلغ],data[كد],mahsolat[[#This Row],[كد]],data[گ],M$4)","v":0}]
[null,9,null,null,null,null,{"$f":"SUM(mahsolat[[#This Row],[مواد مصرفي]:[ساير هزينه ها]])","v":0},{"$f":"SUMIFS(data[مبلغ],data[كد],mahsolat[[#This Row],[كد]],data[گ],H$4)","v":0},{"$f":"SUMIFS(data[مبلغ],data[كد],mahsolat[[#This Row],[كد]],data[گ],I$4)","v":0},{"$f":"SUMIFS(data[مبلغ],data[كد],mahsolat[[#This Row],[كد]],data[گ],J$4)","v":0},{"$f":"SUMIFS(data[مبلغ],data[كد],mahsolat[[#This Row],[كد]],data[گ],K$4)","v":0},{"$f":"SUMIFS(data[مبلغ],data[كد],mahsolat[[#This Row],[كد]],data[گ],L$4)","v":0},{"$f":"SUMIFS(data[مبلغ],data[كد],mahsolat[[#This Row],[كد]],data[گ],M$4)","v":0}]
[null,10,null,null,null,null,{"$f":"SUM(mahsolat[[#This Row],[مواد مصرفي]:[ساير هزينه ها]])","v":0},{"$f":"SUMIFS(data[مبلغ],data[كد],mahsolat[[#This Row],[كد]],data[گ],H$4)","v":0},{"$f":"SUMIFS(data[مبلغ],data[كد],mahsolat[[#This Row],[كد]],data[گ],I$4)","v":0},{"$f":"SUMIFS(data[مبلغ],data[كد],mahsolat[[#This Row],[كد]],data[گ],J$4)","v":0},{"$f":"SUMIFS(data[مبلغ],data[كد],mahsolat[[#This Row],[كد]],data[گ],K$4)","v":0},{"$f":"SUMIFS(data[مبلغ],data[كد],mahsolat[[#This Row],[كد]],data[گ],L$4)","v":0},{"$f":"SUMIFS(data[مبلغ],data[كد],mahsolat[[#This Row],[كد]],data[گ],M$4)","v":0}]
[null,11,null,null,null,null,{"$f":"SUM(mahsolat[[#This Row],[مواد مصرفي]:[ساير هزينه ها]])","v":0},{"$f":"SUMIFS(data[مبلغ],data[كد],mahsolat[[#This Row],[كد]],data[گ],H$4)","v":0},{"$f":"SUMIFS(data[مبلغ],data[كد],mahsolat[[#This Row],[كد]],data[گ],I$4)","v":0},{"$f":"SUMIFS(data[مبلغ],data[كد],mahsolat[[#This Row],[كد]],data[گ],J$4)","v":0},{"$f":"SUMIFS(data[مبلغ],data[كد],mahsolat[[#This Row],[كد]],data[گ],K$4)","v":0},{"$f":"SUMIFS(data[مبلغ],data[كد],mahsolat[[#This Row],[كد]],data[گ],L$4)","v":0},{"$f":"SUMIFS(data[مبلغ],data[كد],mahsolat[[#This Row],[كد]],data[گ],M$4)","v":0}]
[null,12,null,null,null,null,{"$f":"SUM(mahsolat[[#This Row],[مواد مصرفي]:[ساير هزينه ها]])","v":0},{"$f":"SUMIFS(data[مبلغ],data[كد],mahsolat[[#This Row],[كد]],data[گ],H$4)","v":0},{"$f":"SUMIFS(data[مبلغ],data[كد],mahsolat[[#This Row],[كد]],data[گ],I$4)","v":0},{"$f":"SUMIFS(data[مبلغ],data[كد],mahsolat[[#This Row],[كد]],data[گ],J$4)","v":0},{"$f":"SUMIFS(data[مبلغ],data[كد],mahsolat[[#This Row],[كد]],data[گ],K$4)","v":0},{"$f":"SUMIFS(data[مبلغ],data[كد],mahsolat[[#This Row],[كد]],data[گ],L$4)","v":0},{"$f":"SUMIFS(data[مبلغ],data[كد],mahsolat[[#This Row],[كد]],data[گ],M$4)","v":0}]
[null,13,null,null,null,null,{"$f":"SUM(mahsolat[[#This Row],[مواد مصرفي]:[ساير هزينه ها]])","v":0},{"$f":"SUMIFS(data[مبلغ],data[كد],mahsolat[[#This Row],[كد]],data[گ],H$4)","v":0},{"$f":"SUMIFS(data[مبلغ],data[كد],mahsolat[[#This Row],[كد]],data[گ],I$4)","v":0},{"$f":"SUMIFS(data[مبلغ],data[كد],mahsolat[[#This Row],[كد]],data[گ],J$4)","v":0},{"$f":"SUMIFS(data[مبلغ],data[كد],mahsolat[[#This Row],[كد]],data[گ],K$4)","v":0},{"$f":"SUMIFS(data[مبلغ],data[كد],mahsolat[[#This Row],[كد]],data[گ],L$4)","v":0},{"$f":"SUMIFS(data[مبلغ],data[كد],mahsolat[[#This Row],[كد]],data[گ],M$4)","v":0}]
[null,14,null,null,null,null,{"$f":"SUM(mahsolat[[#This Row],[مواد مصرفي]:[ساير هزينه ها]])","v":0},{"$f":"SUMIFS(data[مبلغ],data[كد],mahsolat[[#This Row],[كد]],data[گ],H$4)","v":0},{"$f":"SUMIFS(data[مبلغ],data[كد],mahsolat[[#This Row],[كد]],data[گ],I$4)","v":0},{"$f":"SUMIFS(data[مبلغ],data[كد],mahsolat[[#This Row],[كد]],data[گ],J$4)","v":0},{"$f":"SUMIFS(data[مبلغ],data[كد],mahsolat[[#This Row],[كد]],data[گ],K$4)","v":0},{"$f":"SUMIFS(data[مبلغ],data[كد],mahsolat[[#This Row],[كد]],data[گ],L$4)","v":0},{"$f":"SUMIFS(data[مبلغ],data[كد],mahsolat[[#This Row],[كد]],data[گ],M$4)","v":0}]
[null,15,null,null,null,null,{"$f":"SUM(mahsolat[[#This Row],[مواد مصرفي]:[ساير هزينه ها]])","v":0},{"$f":"SUMIFS(data[مبلغ],data[كد],mahsolat[[#This Row],[كد]],data[گ],H$4)","v":0},{"$f":"SUMIFS(data[مبلغ],data[كد],mahsolat[[#This Row],[كد]],data[گ],I$4)","v":0},{"$f":"SUMIFS(data[مبلغ],data[كد],mahsolat[[#This Row],[كد]],data[گ],J$4)","v":0},{"$f":"SUMIFS(data[مبلغ],data[كد],mahsolat[[#This Row],[كد]],data[گ],K$4)","v":0},{"$f":"SUMIFS(data[مبلغ],data[كد],mahsolat[[#This Row],[كد]],data[گ],L$4)","v":0},{"$f":"SUMIFS(data[مبلغ],data[كد],mahsolat[[#This Row],[كد]],data[گ],M$4)","v":0}]
[null,16,null,null,null,null,{"$f":"SUM(mahsolat[[#This Row],[مواد مصرفي]:[ساير هزينه ها]])","v":0},{"$f":"SUMIFS(data[مبلغ],data[كد],mahsolat[[#This Row],[كد]],data[گ],H$4)","v":0},{"$f":"SUMIFS(data[مبلغ],data[كد],mahsolat[[#This Row],[كد]],data[گ],I$4)","v":0},{"$f":"SUMIFS(data[مبلغ],data[كد],mahsolat[[#This Row],[كد]],data[گ],J$4)","v":0},{"$f":"SUMIFS(data[مبلغ],data[كد],mahsolat[[#This Row],[كد]],data[گ],K$4)","v":0},{"$f":"SUMIFS(data[مبلغ],data[كد],mahsolat[[#This Row],[كد]],data[گ],L$4)","v":0},{"$f":"SUMIFS(data[مبلغ],data[كد],mahsolat[[#This Row],[كد]],data[گ],M$4)","v":0}]
[null,17,null,null,null,null,{"$f":"SUM(mahsolat[[#This Row],[مواد مصرفي]:[ساير هزينه ها]])","v":0},{"$f":"SUMIFS(data[مبلغ],data[كد],mahsolat[[#This Row],[كد]],data[گ],H$4)","v":0},{"$f":"SUMIFS(data[مبلغ],data[كد],mahsolat[[#This Row],[كد]],data[گ],I$4)","v":0},{"$f":"SUMIFS(data[مبلغ],data[كد],mahsolat[[#This Row],[كد]],data[گ],J$4)","v":0},{"$f":"SUMIFS(data[مبلغ],data[كد],mahsolat[[#This Row],[كد]],data[گ],K$4)","v":0},{"$f":"SUMIFS(data[مبلغ],data[كد],mahsolat[[#This Row],[كد]],data[گ],L$4)","v":0},{"$f":"SUMIFS(data[مبلغ],data[كد],mahsolat[[#This Row],[كد]],data[گ],M$4)","v":0}]
[null,18,null,null,null,null,{"$f":"SUM(mahsolat[[#This Row],[مواد مصرفي]:[ساير هزينه ها]])","v":0},{"$f":"SUMIFS(data[مبلغ],data[كد],mahsolat[[#This Row],[كد]],data[گ],H$4)","v":0},{"$f":"SUMIFS(data[مبلغ],data[كد],mahsolat[[#This Row],[كد]],data[گ],I$4)","v":0},{"$f":"SUMIFS(data[مبلغ],data[كد],mahsolat[[#This Row],[كد]],data[گ],J$4)","v":0},{"$f":"SUMIFS(data[مبلغ],data[كد],mahsolat[[#This Row],[كد]],data[گ],K$4)","v":0},{"$f":"SUMIFS(data[مبلغ],data[كد],mahsolat[[#This Row],[كد]],data[گ],L$4)","v":0},{"$f":"SUMIFS(data[مبلغ],data[كد],mahsolat[[#This Row],[كد]],data[گ],M$4)","v":0}]
[null,19,null,null,null,null,{"$f":"SUM(mahsolat[[#This Row],[مواد مصرفي]:[ساير هزينه ها]])","v":0},{"$f":"SUMIFS(data[مبلغ],data[كد],mahsolat[[#This Row],[كد]],data[گ],H$4)","v":0},{"$f":"SUMIFS(data[مبلغ],data[كد],mahsolat[[#This Row],[كد]],data[گ],I$4)","v":0},{"$f":"SUMIFS(data[مبلغ],data[كد],mahsolat[[#This Row],[كد]],data[گ],J$4)","v":0},{"$f":"SUMIFS(data[مبلغ],data[كد],mahsolat[[#This Row],[كد]],data[گ],K$4)","v":0},{"$f":"SUMIFS(data[مبلغ],data[كد],mahsolat[[#This Row],[كد]],data[گ],L$4)","v":0},{"$f":"SUMIFS(data[مبلغ],data[كد],mahsolat[[#This Row],[كد]],data[گ],M$4)","v":0}]
[null,20,null,null,null,null,{"$f":"SUM(mahsolat[[#This Row],[مواد مصرفي]:[ساير هزينه ها]])","v":0},{"$f":"SUMIFS(data[مبلغ],data[كد],mahsolat[[#This Row],[كد]],data[گ],H$4)","v":0},{"$f":"SUMIFS(data[مبلغ],data[كد],mahsolat[[#This Row],[كد]],data[گ],I$4)","v":0},{"$f":"SUMIFS(data[مبلغ],data[كد],mahsolat[[#This Row],[كد]],data[گ],J$4)","v":0},{"$f":"SUMIFS(data[مبلغ],data[كد],mahsolat[[#This Row],[كد]],data[گ],K$4)","v":0},{"$f":"SUMIFS(data[مبلغ],data[كد],mahsolat[[#This Row],[كد]],data[گ],L$4)","v":0},{"$f":"SUMIFS(data[مبلغ],data[كد],mahsolat[[#This Row],[كد]],data[گ],M$4)","v":0}]
[null,21,null,null,null,null,{"$f":"SUM(mahsolat[[#This Row],[مواد مصرفي]:[ساير هزينه ها]])","v":0},{"$f":"SUMIFS(data[مبلغ],data[كد],mahsolat[[#This Row],[كد]],data[گ],H$4)","v":0},{"$f":"SUMIFS(data[مبلغ],data[كد],mahsolat[[#This Row],[كد]],data[گ],I$4)","v":0},{"$f":"SUMIFS(data[مبلغ],data[كد],mahsolat[[#This Row],[كد]],data[گ],J$4)","v":0},{"$f":"SUMIFS(data[مبلغ],data[كد],mahsolat[[#This Row],[كد]],data[گ],K$4)","v":0},{"$f":"SUMIFS(data[مبلغ],data[كد],mahsolat[[#This Row],[كد]],data[گ],L$4)","v":0},{"$f":"SUMIFS(data[مبلغ],data[كد],mahsolat[[#This Row],[كد]],data[گ],M$4)","v":0}]
[null,22,null,null,null,null,{"$f":"SUM(mahsolat[[#This Row],[مواد مصرفي]:[ساير هزينه ها]])","v":0},{"$f":"SUMIFS(data[مبلغ],data[كد],mahsolat[[#This Row],[كد]],data[گ],H$4)","v":0},{"$f":"SUMIFS(data[مبلغ],data[كد],mahsolat[[#This Row],[كد]],data[گ],I$4)","v":0},{"$f":"SUMIFS(data[مبلغ],data[كد],mahsolat[[#This Row],[كد]],data[گ],J$4)","v":0},{"$f":"SUMIFS(data[مبلغ],data[كد],mahsolat[[#This Row],[كد]],data[گ],K$4)","v":0},{"$f":"SUMIFS(data[مبلغ],data[كد],mahsolat[[#This Row],[كد]],data[گ],L$4)","v":0},{"$f":"SUMIFS(data[مبلغ],data[كد],mahsolat[[#This Row],[كد]],data[گ],M$4)","v":0}]
[null,23,null,null,null,null,{"$f":"SUM(mahsolat[[#This Row],[مواد مصرفي]:[ساير هزينه ها]])","v":0},{"$f":"SUMIFS(data[مبلغ],data[كد],mahsolat[[#This Row],[كد]],data[گ],H$4)","v":0},{"$f":"SUMIFS(data[مبلغ],data[كد],mahsolat[[#This Row],[كد]],data[گ],I$4)","v":0},{"$f":"SUMIFS(data[مبلغ],data[كد],mahsolat[[#This Row],[كد]],data[گ],J$4)","v":0},{"$f":"SUMIFS(data[مبلغ],data[كد],mahsolat[[#This Row],[كد]],data[گ],K$4)","v":0},{"$f":"SUMIFS(data[مبلغ],data[كد],mahsolat[[#This Row],[كد]],data[گ],L$4)","v":0},{"$f":"SUMIFS(data[مبلغ],data[كد],mahsolat[[#This Row],[كد]],data[گ],M$4)","v":0}]
[null,24,null,null,null,null,{"$f":"SUM(mahsolat[[#This Row],[مواد مصرفي]:[ساير هزينه ها]])","v":0},{"$f":"SUMIFS(data[مبلغ],data[كد],mahsolat[[#This Row],[كد]],data[گ],H$4)","v":0},{"$f":"SUMIFS(data[مبلغ],data[كد],mahsolat[[#This Row],[كد]],data[گ],I$4)","v":0},{"$f":"SUMIFS(data[مبلغ],data[كد],mahsolat[[#This Row],[كد]],data[گ],J$4)","v":0},{"$f":"SUMIFS(data[مبلغ],data[كد],mahsolat[[#This Row],[كد]],data[گ],K$4)","v":0},{"$f":"SUMIFS(data[مبلغ],data[كد],mahsolat[[#This Row],[كد]],data[گ],L$4)","v":0},{"$f":"SUMIFS(data[مبلغ],data[كد],mahsolat[[#This Row],[كد]],data[گ],M$4)","v":0}]
[null,25,null,null,null,null,{"$f":"SUM(mahsolat[[#This Row],[مواد مصرفي]:[ساير هزينه ها]])","v":0},{"$f":"SUMIFS(data[مبلغ],data[كد],mahsolat[[#This Row],[كد]],data[گ],H$4)","v":0},{"$f":"SUMIFS(data[مبلغ],data[كد],mahsolat[[#This Row],[كد]],data[گ],I$4)","v":0},{"$f":"SUMIFS(data[مبلغ],data[كد],mahsolat[[#This Row],[كد]],data[گ],J$4)","v":0},{"$f":"SUMIFS(data[مبلغ],data[كد],mahsolat[[#This Row],[كد]],data[گ],K$4)","v":0},{"$f":"SUMIFS(data[مبلغ],data[كد],mahsolat[[#This Row],[كد]],data[گ],L$4)","v":0},{"$f":"SUMIFS(data[مبلغ],data[كد],mahsolat[[#This Row],[كد]],data[گ],M$4)","v":0}]
[null,26,null,null,null,null,{"$f":"SUM(mahsolat[[#This Row],[مواد مصرفي]:[ساير هزينه ها]])","v":0},{"$f":"SUMIFS(data[مبلغ],data[كد],mahsolat[[#This Row],[كد]],data[گ],H$4)","v":0},{"$f":"SUMIFS(data[مبلغ],data[كد],mahsolat[[#This Row],[كد]],data[گ],I$4)","v":0},{"$f":"SUMIFS(data[مبلغ],data[كد],mahsolat[[#This Row],[كد]],data[گ],J$4)","v":0},{"$f":"SUMIFS(data[مبلغ],data[كد],mahsolat[[#This Row],[كد]],data[گ],K$4)","v":0},{"$f":"SUMIFS(data[مبلغ],data[كد],mahsolat[[#This Row],[كد]],data[گ],L$4)","v":0},{"$f":"SUMIFS(data[مبلغ],data[كد],mahsolat[[#This Row],[كد]],data[گ],M$4)","v":0}]
[null,27,null,null,null,null,{"$f":"SUM(mahsolat[[#This Row],[مواد مصرفي]:[ساير هزينه ها]])","v":0},{"$f":"SUMIFS(data[مبلغ],data[كد],mahsolat[[#This Row],[كد]],data[گ],H$4)","v":0},{"$f":"SUMIFS(data[مبلغ],data[كد],mahsolat[[#This Row],[كد]],data[گ],I$4)","v":0},{"$f":"SUMIFS(data[مبلغ],data[كد],mahsolat[[#This Row],[كد]],data[گ],J$4)","v":0},{"$f":"SUMIFS(data[مبلغ],data[كد],mahsolat[[#This Row],[كد]],data[گ],K$4)","v":0},{"$f":"SUMIFS(data[مبلغ],data[كد],mahsolat[[#This Row],[كد]],data[گ],L$4)","v":0},{"$f":"SUMIFS(data[مبلغ],data[كد],mahsolat[[#This Row],[كد]],data[گ],M$4)","v":0}]
[null,28,null,null,null,null,{"$f":"SUM(mahsolat[[#This Row],[مواد مصرفي]:[ساير هزينه ها]])","v":0},{"$f":"SUMIFS(data[مبلغ],data[كد],mahsolat[[#This Row],[كد]],data[گ],H$4)","v":0},{"$f":"SUMIFS(data[مبلغ],data[كد],mahsolat[[#This Row],[كد]],data[گ],I$4)","v":0},{"$f":"SUMIFS(data[مبلغ],data[كد],mahsolat[[#This Row],[كد]],data[گ],J$4)","v":0},{"$f":"SUMIFS(data[مبلغ],data[كد],mahsolat[[#This Row],[كد]],data[گ],K$4)","v":0},{"$f":"SUMIFS(data[مبلغ],data[كد],mahsolat[[#This Row],[كد]],data[گ],L$4)","v":0},{"$f":"SUMIFS(data[مبلغ],data[كد],mahsolat[[#This Row],[كد]],data[گ],M$4)","v":0}]
[null,29,null,null,null,null,{"$f":"SUM(mahsolat[[#This Row],[مواد مصرفي]:[ساير هزينه ها]])","v":0},{"$f":"SUMIFS(data[مبلغ],data[كد],mahsolat[[#This Row],[كد]],data[گ],H$4)","v":0},{"$f":"SUMIFS(data[مبلغ],data[كد],mahsolat[[#This Row],[كد]],data[گ],I$4)","v":0},{"$f":"SUMIFS(data[مبلغ],data[كد],mahsolat[[#This Row],[كد]],data[گ],J$4)","v":0},{"$f":"SUMIFS(data[مبلغ],data[كد],mahsolat[[#This Row],[كد]],data[گ],K$4)","v":0},{"$f":"SUMIFS(data[مبلغ],data[كد],mahsolat[[#This Row],[كد]],data[گ],L$4)","v":0},{"$f":"SUMIFS(data[مبلغ],data[كد],mahsolat[[#This Row],[كد]],data[گ],M$4)","v":0}]
[null,30,null,null,null,null,{"$f":"SUM(mahsolat[[#This Row],[مواد مصرفي]:[ساير هزينه ها]])","v":0},{"$f":"SUMIFS(data[مبلغ],data[كد],mahsolat[[#This Row],[كد]],data[گ],H$4)","v":0},{"$f":"SUMIFS(data[مبلغ],data[كد],mahsolat[[#This Row],[كد]],data[گ],I$4)","v":0},{"$f":"SUMIFS(data[مبلغ],data[كد],mahsolat[[#This Row],[كد]],data[گ],J$4)","v":0},{"$f":"SUMIFS(data[مبلغ],data[كد],mahsolat[[#This Row],[كد]],data[گ],K$4)","v":0},{"$f":"SUMIFS(data[مبلغ],data[كد],mahsolat[[#This Row],[كد]],data[گ],L$4)","v":0},{"$f":"SUMIFS(data[مبلغ],data[كد],mahsolat[[#This Row],[كد]],data[گ],M$4)","v":0}]
[null,31,null,null,null,null,{"$f":"SUM(mahsolat[[#This Row],[مواد مصرفي]:[ساير هزينه ها]])","v":0},{"$f":"SUMIFS(data[مبلغ],data[كد],mahsolat[[#This Row],[كد]],data[گ],H$4)","v":0},{"$f":"SUMIFS(data[مبلغ],data[كد],mahsolat[[#This Row],[كد]],data[گ],I$4)","v":0},{"$f":"SUMIFS(data[مبلغ],data[كد],mahsolat[[#This Row],[كد]],data[گ],J$4)","v":0},{"$f":"SUMIFS(data[مبلغ],data[كد],mahsolat[[#This Row],[كد]],data[گ],K$4)","v":0},{"$f":"SUMIFS(data[مبلغ],data[كد],mahsolat[[#This Row],[كد]],data[گ],L$4)","v":0},{"$f":"SUMIFS(data[مبلغ],data[كد],mahsolat[[#This Row],[كد]],data[گ],M$4)","v":0}]
[null,32,null,null,null,null,{"$f":"SUM(mahsolat[[#This Row],[مواد مصرفي]:[ساير هزينه ها]])","v":0},{"$f":"SUMIFS(data[مبلغ],data[كد],mahsolat[[#This Row],[كد]],data[گ],H$4)","v":0},{"$f":"SUMIFS(data[مبلغ],data[كد],mahsolat[[#This Row],[كد]],data[گ],I$4)","v":0},{"$f":"SUMIFS(data[مبلغ],data[كد],mahsolat[[#This Row],[كد]],data[گ],J$4)","v":0},{"$f":"SUMIFS(data[مبلغ],data[كد],mahsolat[[#This Row],[كد]],data[گ],K$4)","v":0},{"$f":"SUMIFS(data[مبلغ],data[كد],mahsolat[[#This Row],[كد]],data[گ],L$4)","v":0},{"$f":"SUMIFS(data[مبلغ],data[كد],mahsolat[[#This Row],[كد]],data[گ],M$4)","v":0}]
[null,33,null,null,null,null,{"$f":"SUM(mahsolat[[#This Row],[مواد مصرفي]:[ساير هزينه ها]])","v":0},{"$f":"SUMIFS(data[مبلغ],data[كد],mahsolat[[#This Row],[كد]],data[گ],H$4)","v":0},{"$f":"SUMIFS(data[مبلغ],data[كد],mahsolat[[#This Row],[كد]],data[گ],I$4)","v":0},{"$f":"SUMIFS(data[مبلغ],data[كد],mahsolat[[#This Row],[كد]],data[گ],J$4)","v":0},{"$f":"SUMIFS(data[مبلغ],data[كد],mahsolat[[#This Row],[كد]],data[گ],K$4)","v":0},{"$f":"SUMIFS(data[مبلغ],data[كد],mahsolat[[#This Row],[كد]],data[گ],L$4)","v":0},{"$f":"SUMIFS(data[مبلغ],data[كد],mahsolat[[#This Row],[كد]],data[گ],M$4)","v":0}]
[null,34,null,null,null,null,{"$f":"SUM(mahsolat[[#This Row],[مواد مصرفي]:[ساير هزينه ها]])","v":0},{"$f":"SUMIFS(data[مبلغ],data[كد],mahsolat[[#This Row],[كد]],data[گ],H$4)","v":0},{"$f":"SUMIFS(data[مبلغ],data[كد],mahsolat[[#This Row],[كد]],data[گ],I$4)","v":0},{"$f":"SUMIFS(data[مبلغ],data[كد],mahsolat[[#This Row],[كد]],data[گ],J$4)","v":0},{"$f":"SUMIFS(data[مبلغ],data[كد],mahsolat[[#This Row],[كد]],data[گ],K$4)","v":0},{"$f":"SUMIFS(data[مبلغ],data[كد],mahsolat[[#This Row],[كد]],data[گ],L$4)","v":0},{"$f":"SUMIFS(data[مبلغ],data[كد],mahsolat[[#This Row],[كد]],data[گ],M$4)","v":0}]
[null,35,null,null,null,null,{"$f":"SUM(mahsolat[[#This Row],[مواد مصرفي]:[ساير هزينه ها]])","v":0},{"$f":"SUMIFS(data[مبلغ],data[كد],mahsolat[[#This Row],[كد]],data[گ],H$4)","v":0},{"$f":"SUMIFS(data[مبلغ],data[كد],mahsolat[[#This Row],[كد]],data[گ],I$4)","v":0},{"$f":"SUMIFS(data[مبلغ],data[كد],mahsolat[[#This Row],[كد]],data[گ],J$4)","v":0},{"$f":"SUMIFS(data[مبلغ],data[كد],mahsolat[[#This Row],[كد]],data[گ],K$4)","v":0},{"$f":"SUMIFS(data[مبلغ],data[كد],mahsolat[[#This Row],[كد]],data[گ],L$4)","v":0},{"$f":"SUMIFS(data[مبلغ],data[كد],mahsolat[[#This Row],[كد]],data[گ],M$4)","v":0}]
[null,36,null,null,null,null,{"$f":"SUM(mahsolat[[#This Row],[مواد مصرفي]:[ساير هزينه ها]])","v":0},{"$f":"SUMIFS(data[مبلغ],data[كد],mahsolat[[#This Row],[كد]],data[گ],H$4)","v":0},{"$f":"SUMIFS(data[مبلغ],data[كد],mahsolat[[#This Row],[كد]],data[گ],I$4)","v":0},{"$f":"SUMIFS(data[مبلغ],data[كد],mahsolat[[#This Row],[كد]],data[گ],J$4)","v":0},{"$f":"SUMIFS(data[مبلغ],data[كد],mahsolat[[#This Row],[كد]],data[گ],K$4)","v":0},{"$f":"SUMIFS(data[مبلغ],data[كد],mahsolat[[#This Row],[كد]],data[گ],L$4)","v":0},{"$f":"SUMIFS(data[مبلغ],data[كد],mahsolat[[#This Row],[كد]],data[گ],M$4)","v":0}]
[null,37,null,null,null,null,{"$f":"SUM(mahsolat[[#This Row],[مواد مصرفي]:[ساير هزينه ها]])","v":0},{"$f":"SUMIFS(data[مبلغ],data[كد],mahsolat[[#This Row],[كد]],data[گ],H$4)","v":0},{"$f":"SUMIFS(data[مبلغ],data[كد],mahsolat[[#This Row],[كد]],data[گ],I$4)","v":0},{"$f":"SUMIFS(data[مبلغ],data[كد],mahsolat[[#This Row],[كد]],data[گ],J$4)","v":0},{"$f":"SUMIFS(data[مبلغ],data[كد],mahsolat[[#This Row],[كد]],data[گ],K$4)","v":0},{"$f":"SUMIFS(data[مبلغ],data[كد],mahsolat[[#This Row],[كد]],data[گ],L$4)","v":0},{"$f":"SUMIFS(data[مبلغ],data[كد],mahsolat[[#This Row],[كد]],data[گ],M$4)","v":0}]
[null,38,null,null,null,null,{"$f":"SUM(mahsolat[[#This Row],[مواد مصرفي]:[ساير هزينه ها]])","v":0},{"$f":"SUMIFS(data[مبلغ],data[كد],mahsolat[[#This Row],[كد]],data[گ],H$4)","v":0},{"$f":"SUMIFS(data[مبلغ],data[كد],mahsolat[[#This Row],[كد]],data[گ],I$4)","v":0},{"$f":"SUMIFS(data[مبلغ],data[كد],mahsolat[[#This Row],[كد]],data[گ],J$4)","v":0},{"$f":"SUMIFS(data[مبلغ],data[كد],mahsolat[[#This Row],[كد]],data[گ],K$4)","v":0},{"$f":"SUMIFS(data[مبلغ],data[كد],mahsolat[[#This Row],[كد]],data[گ],L$4)","v":0},{"$f":"SUMIFS(data[مبلغ],data[كد],mahsolat[[#This Row],[كد]],data[گ],M$4)","v":0}]
[null,39,null,null,null,null,{"$f":"SUM(mahsolat[[#This Row],[مواد مصرفي]:[ساير هزينه ها]])","v":0},{"$f":"SUMIFS(data[مبلغ],data[كد],mahsolat[[#This Row],[كد]],data[گ],H$4)","v":0},{"$f":"SUMIFS(data[مبلغ],data[كد],mahsolat[[#This Row],[كد]],data[گ],I$4)","v":0},{"$f":"SUMIFS(data[مبلغ],data[كد],mahsolat[[#This Row],[كد]],data[گ],J$4)","v":0},{"$f":"SUMIFS(data[مبلغ],data[كد],mahsolat[[#This Row],[كد]],data[گ],K$4)","v":0},{"$f":"SUMIFS(data[مبلغ],data[كد],mahsolat[[#This Row],[كد]],data[گ],L$4)","v":0},{"$f":"SUMIFS(data[مبلغ],data[كد],mahsolat[[#This Row],[كد]],data[گ],M$4)","v":0}]
[null,40,null,null,null,null,{"$f":"SUM(mahsolat[[#This Row],[مواد مصرفي]:[ساير هزينه ها]])","v":0},{"$f":"SUMIFS(data[مبلغ],data[كد],mahsolat[[#This Row],[كد]],data[گ],H$4)","v":0},{"$f":"SUMIFS(data[مبلغ],data[كد],mahsolat[[#This Row],[كد]],data[گ],I$4)","v":0},{"$f":"SUMIFS(data[مبلغ],data[كد],mahsolat[[#This Row],[كد]],data[گ],J$4)","v":0},{"$f":"SUMIFS(data[مبلغ],data[كد],mahsolat[[#This Row],[كد]],data[گ],K$4)","v":0},{"$f":"SUMIFS(data[مبلغ],data[كد],mahsolat[[#This Row],[كد]],data[گ],L$4)","v":0},{"$f":"SUMIFS(data[مبلغ],data[كد],mahsolat[[#This Row],[كد]],data[گ],M$4)","v":0}]
[null,41,null,null,null,null,{"$f":"SUM(mahsolat[[#This Row],[مواد مصرفي]:[ساير هزينه ها]])","v":0},{"$f":"SUMIFS(data[مبلغ],data[كد],mahsolat[[#This Row],[كد]],data[گ],H$4)","v":0},{"$f":"SUMIFS(data[مبلغ],data[كد],mahsolat[[#This Row],[كد]],data[گ],I$4)","v":0},{"$f":"SUMIFS(data[مبلغ],data[كد],mahsolat[[#This Row],[كد]],data[گ],J$4)","v":0},{"$f":"SUMIFS(data[مبلغ],data[كد],mahsolat[[#This Row],[كد]],data[گ],K$4)","v":0},{"$f":"SUMIFS(data[مبلغ],data[كد],mahsolat[[#This Row],[كد]],data[گ],L$4)","v":0},{"$f":"SUMIFS(data[مبلغ],data[كد],mahsolat[[#This Row],[كد]],data[گ],M$4)","v":0}]
[null,42,null,null,null,null,{"$f":"SUM(mahsolat[[#This Row],[مواد مصرفي]:[ساير هزينه ها]])","v":0},{"$f":"SUMIFS(data[مبلغ],data[كد],mahsolat[[#This Row],[كد]],data[گ],H$4)","v":0},{"$f":"SUMIFS(data[مبلغ],data[كد],mahsolat[[#This Row],[كد]],data[گ],I$4)","v":0},{"$f":"SUMIFS(data[مبلغ],data[كد],mahsolat[[#This Row],[كد]],data[گ],J$4)","v":0},{"$f":"SUMIFS(data[مبلغ],data[كد],mahsolat[[#This Row],[كد]],data[گ],K$4)","v":0},{"$f":"SUMIFS(data[مبلغ],data[كد],mahsolat[[#This Row],[كد]],data[گ],L$4)","v":0},{"$f":"SUMIFS(data[مبلغ],data[كد],mahsolat[[#This Row],[كد]],data[گ],M$4)","v":0}]
[null,43,null,null,null,null,{"$f":"SUM(mahsolat[[#This Row],[مواد مصرفي]:[ساير هزينه ها]])","v":0},{"$f":"SUMIFS(data[مبلغ],data[كد],mahsolat[[#This Row],[كد]],data[گ],H$4)","v":0},{"$f":"SUMIFS(data[مبلغ],data[كد],mahsolat[[#This Row],[كد]],data[گ],I$4)","v":0},{"$f":"SUMIFS(data[مبلغ],data[كد],mahsolat[[#This Row],[كد]],data[گ],J$4)","v":0},{"$f":"SUMIFS(data[مبلغ],data[كد],mahsolat[[#This Row],[كد]],data[گ],K$4)","v":0},{"$f":"SUMIFS(data[مبلغ],data[كد],mahsolat[[#This Row],[كد]],data[گ],L$4)","v":0},{"$f":"SUMIFS(data[مبلغ],data[كد],mahsolat[[#This Row],[كد]],data[گ],M$4)","v":0}]
[null,44,null,null,null,null,{"$f":"SUM(mahsolat[[#This Row],[مواد مصرفي]:[ساير هزينه ها]])","v":0},{"$f":"SUMIFS(data[مبلغ],data[كد],mahsolat[[#This Row],[كد]],data[گ],H$4)","v":0},{"$f":"SUMIFS(data[مبلغ],data[كد],mahsolat[[#This Row],[كد]],data[گ],I$4)","v":0},{"$f":"SUMIFS(data[مبلغ],data[كد],mahsolat[[#This Row],[كد]],data[گ],J$4)","v":0},{"$f":"SUMIFS(data[مبلغ],data[كد],mahsolat[[#This Row],[كد]],data[گ],K$4)","v":0},{"$f":"SUMIFS(data[مبلغ],data[كد],mahsolat[[#This Row],[كد]],data[گ],L$4)","v":0},{"$f":"SUMIFS(data[مبلغ],data[كد],mahsolat[[#This Row],[كد]],data[گ],M$4)","v":0}]
[null,45,null,null,null,null,{"$f":"SUM(mahsolat[[#This Row],[مواد مصرفي]:[ساير هزينه ها]])","v":0},{"$f":"SUMIFS(data[مبلغ],data[كد],mahsolat[[#This Row],[كد]],data[گ],H$4)","v":0},{"$f":"SUMIFS(data[مبلغ],data[كد],mahsolat[[#This Row],[كد]],data[گ],I$4)","v":0},{"$f":"SUMIFS(data[مبلغ],data[كد],mahsolat[[#This Row],[كد]],data[گ],J$4)","v":0},{"$f":"SUMIFS(data[مبلغ],data[كد],mahsolat[[#This Row],[كد]],data[گ],K$4)","v":0},{"$f":"SUMIFS(data[مبلغ],data[كد],mahsolat[[#This Row],[كد]],data[گ],L$4)","v":0},{"$f":"SUMIFS(data[مبلغ],data[كد],mahsolat[[#This Row],[كد]],data[گ],M$4)","v":0}]
[null,46,null,null,null,null,{"$f":"SUM(mahsolat[[#This Row],[مواد مصرفي]:[ساير هزينه ها]])","v":0},{"$f":"SUMIFS(data[مبلغ],data[كد],mahsolat[[#This Row],[كد]],data[گ],H$4)","v":0},{"$f":"SUMIFS(data[مبلغ],data[كد],mahsolat[[#This Row],[كد]],data[گ],I$4)","v":0},{"$f":"SUMIFS(data[مبلغ],data[كد],mahsolat[[#This Row],[كد]],data[گ],J$4)","v":0},{"$f":"SUMIFS(data[مبلغ],data[كد],mahsolat[[#This Row],[كد]],data[گ],K$4)","v":0},{"$f":"SUMIFS(data[مبلغ],data[كد],mahsolat[[#This Row],[كد]],data[گ],L$4)","v":0},{"$f":"SUMIFS(data[مبلغ],data[كد],mahsolat[[#This Row],[كد]],data[گ],M$4)","v":0}]
[null,47,null,null,null,null,{"$f":"SUM(mahsolat[[#This Row],[مواد مصرفي]:[ساير هزينه ها]])","v":0},{"$f":"SUMIFS(data[مبلغ],data[كد],mahsolat[[#This Row],[كد]],data[گ],H$4)","v":0},{"$f":"SUMIFS(data[مبلغ],data[كد],mahsolat[[#This Row],[كد]],data[گ],I$4)","v":0},{"$f":"SUMIFS(data[مبلغ],data[كد],mahsolat[[#This Row],[كد]],data[گ],J$4)","v":0},{"$f":"SUMIFS(data[مبلغ],data[كد],mahsolat[[#This Row],[كد]],data[گ],K$4)","v":0},{"$f":"SUMIFS(data[مبلغ],data[كد],mahsolat[[#This Row],[كد]],data[گ],L$4)","v":0},{"$f":"SUMIFS(data[مبلغ],data[كد],mahsolat[[#This Row],[كد]],data[گ],M$4)","v":0}]
[null,48,null,null,null,null,{"$f":"SUM(mahsolat[[#This Row],[مواد مصرفي]:[ساير هزينه ها]])","v":0},{"$f":"SUMIFS(data[مبلغ],data[كد],mahsolat[[#This Row],[كد]],data[گ],H$4)","v":0},{"$f":"SUMIFS(data[مبلغ],data[كد],mahsolat[[#This Row],[كد]],data[گ],I$4)","v":0},{"$f":"SUMIFS(data[مبلغ],data[كد],mahsolat[[#This Row],[كد]],data[گ],J$4)","v":0},{"$f":"SUMIFS(data[مبلغ],data[كد],mahsolat[[#This Row],[كد]],data[گ],K$4)","v":0},{"$f":"SUMIFS(data[مبلغ],data[كد],mahsolat[[#This Row],[كد]],data[گ],L$4)","v":0},{"$f":"SUMIFS(data[مبلغ],data[كد],mahsolat[[#This Row],[كد]],data[گ],M$4)","v":0}]
[null,49,null,null,null,null,{"$f":"SUM(mahsolat[[#This Row],[مواد مصرفي]:[ساير هزينه ها]])","v":0},{"$f":"SUMIFS(data[مبلغ],data[كد],mahsolat[[#This Row],[كد]],data[گ],H$4)","v":0},{"$f":"SUMIFS(data[مبلغ],data[كد],mahsolat[[#This Row],[كد]],data[گ],I$4)","v":0},{"$f":"SUMIFS(data[مبلغ],data[كد],mahsolat[[#This Row],[كد]],data[گ],J$4)","v":0},{"$f":"SUMIFS(data[مبلغ],data[كد],mahsolat[[#This Row],[كد]],data[گ],K$4)","v":0},{"$f":"SUMIFS(data[مبلغ],data[كد],mahsolat[[#This Row],[كد]],data[گ],L$4)","v":0},{"$f":"SUMIFS(data[مبلغ],data[كد],mahsolat[[#This Row],[كد]],data[گ],M$4)","v":0}]
[null,50,null,null,null,null,{"$f":"SUM(mahsolat[[#This Row],[مواد مصرفي]:[ساير هزينه ها]])","v":0},{"$f":"SUMIFS(data[مبلغ],data[كد],mahsolat[[#This Row],[كد]],data[گ],H$4)","v":0},{"$f":"SUMIFS(data[مبلغ],data[كد],mahsolat[[#This Row],[كد]],data[گ],I$4)","v":0},{"$f":"SUMIFS(data[مبلغ],data[كد],mahsolat[[#This Row],[كد]],data[گ],J$4)","v":0},{"$f":"SUMIFS(data[مبلغ],data[كد],mahsolat[[#This Row],[كد]],data[گ],K$4)","v":0},{"$f":"SUMIFS(data[مبلغ],data[كد],mahsolat[[#This Row],[كد]],data[گ],L$4)","v":0},{"$f":"SUMIFS(data[مبلغ],data[كد],mahsolat[[#This Row],[كد]],data[گ],M$4)","v":0}]
[null,51,null,null,null,null,{"$f":"SUM(mahsolat[[#This Row],[مواد مصرفي]:[ساير هزينه ها]])","v":0},{"$f":"SUMIFS(data[مبلغ],data[كد],mahsolat[[#This Row],[كد]],data[گ],H$4)","v":0},{"$f":"SUMIFS(data[مبلغ],data[كد],mahsolat[[#This Row],[كد]],data[گ],I$4)","v":0},{"$f":"SUMIFS(data[مبلغ],data[كد],mahsolat[[#This Row],[كد]],data[گ],J$4)","v":0},{"$f":"SUMIFS(data[مبلغ],data[كد],mahsolat[[#This Row],[كد]],data[گ],K$4)","v":0},{"$f":"SUMIFS(data[مبلغ],data[كد],mahsolat[[#This Row],[كد]],data[گ],L$4)","v":0},{"$f":"SUMIFS(data[مبلغ],data[كد],mahsolat[[#This Row],[كد]],data[گ],M$4)","v":0}]
[null,52,null,null,null,null,{"$f":"SUM(mahsolat[[#This Row],[مواد مصرفي]:[ساير هزينه ها]])","v":0},{"$f":"SUMIFS(data[مبلغ],data[كد],mahsolat[[#This Row],[كد]],data[گ],H$4)","v":0},{"$f":"SUMIFS(data[مبلغ],data[كد],mahsolat[[#This Row],[كد]],data[گ],I$4)","v":0},{"$f":"SUMIFS(data[مبلغ],data[كد],mahsolat[[#This Row],[كد]],data[گ],J$4)","v":0},{"$f":"SUMIFS(data[مبلغ],data[كد],mahsolat[[#This Row],[كد]],data[گ],K$4)","v":0},{"$f":"SUMIFS(data[مبلغ],data[كد],mahsolat[[#This Row],[كد]],data[گ],L$4)","v":0},{"$f":"SUMIFS(data[مبلغ],data[كد],mahsolat[[#This Row],[كد]],data[گ],M$4)","v":0}]
[null,53,null,null,null,null,{"$f":"SUM(mahsolat[[#This Row],[مواد مصرفي]:[ساير هزينه ها]])","v":0},{"$f":"SUMIFS(data[مبلغ],data[كد],mahsolat[[#This Row],[كد]],data[گ],H$4)","v":0},{"$f":"SUMIFS(data[مبلغ],data[كد],mahsolat[[#This Row],[كد]],data[گ],I$4)","v":0},{"$f":"SUMIFS(data[مبلغ],data[كد],mahsolat[[#This Row],[كد]],data[گ],J$4)","v":0},{"$f":"SUMIFS(data[مبلغ],data[كد],mahsolat[[#This Row],[كد]],data[گ],K$4)","v":0},{"$f":"SUMIFS(data[مبلغ],data[كد],mahsolat[[#This Row],[كد]],data[گ],L$4)","v":0},{"$f":"SUMIFS(data[مبلغ],data[كد],mahsolat[[#This Row],[كد]],data[گ],M$4)","v":0}]
[null,54,null,null,null,null,{"$f":"SUM(mahsolat[[#This Row],[مواد مصرفي]:[ساير هزينه ها]])","v":0},{"$f":"SUMIFS(data[مبلغ],data[كد],mahsolat[[#This Row],[كد]],data[گ],H$4)","v":0},{"$f":"SUMIFS(data[مبلغ],data[كد],mahsolat[[#This Row],[كد]],data[گ],I$4)","v":0},{"$f":"SUMIFS(data[مبلغ],data[كد],mahsolat[[#This Row],[كد]],data[گ],J$4)","v":0},{"$f":"SUMIFS(data[مبلغ],data[كد],mahsolat[[#This Row],[كد]],data[گ],K$4)","v":0},{"$f":"SUMIFS(data[مبلغ],data[كد],mahsolat[[#This Row],[كد]],data[گ],L$4)","v":0},{"$f":"SUMIFS(data[مبلغ],data[كد],mahsolat[[#This Row],[كد]],data[گ],M$4)","v":0}]
[null,55,null,null,null,null,{"$f":"SUM(mahsolat[[#This Row],[مواد مصرفي]:[ساير هزينه ها]])","v":0},{"$f":"SUMIFS(data[مبلغ],data[كد],mahsolat[[#This Row],[كد]],data[گ],H$4)","v":0},{"$f":"SUMIFS(data[مبلغ],data[كد],mahsolat[[#This Row],[كد]],data[گ],I$4)","v":0},{"$f":"SUMIFS(data[مبلغ],data[كد],mahsolat[[#This Row],[كد]],data[گ],J$4)","v":0},{"$f":"SUMIFS(data[مبلغ],data[كد],mahsolat[[#This Row],[كد]],data[گ],K$4)","v":0},{"$f":"SUMIFS(data[مبلغ],data[كد],mahsolat[[#This Row],[كد]],data[گ],L$4)","v":0},{"$f":"SUMIFS(data[مبلغ],data[كد],mahsolat[[#This Row],[كد]],data[گ],M$4)","v":0}]
[null,56,null,null,null,null,{"$f":"SUM(mahsolat[[#This Row],[مواد مصرفي]:[ساير هزينه ها]])","v":0},{"$f":"SUMIFS(data[مبلغ],data[كد],mahsolat[[#This Row],[كد]],data[گ],H$4)","v":0},{"$f":"SUMIFS(data[مبلغ],data[كد],mahsolat[[#This Row],[كد]],data[گ],I$4)","v":0},{"$f":"SUMIFS(data[مبلغ],data[كد],mahsolat[[#This Row],[كد]],data[گ],J$4)","v":0},{"$f":"SUMIFS(data[مبلغ],data[كد],mahsolat[[#This Row],[كد]],data[گ],K$4)","v":0},{"$f":"SUMIFS(data[مبلغ],data[كد],mahsolat[[#This Row],[كد]],data[گ],L$4)","v":0},{"$f":"SUMIFS(data[مبلغ],data[كد],mahsolat[[#This Row],[كد]],data[گ],M$4)","v":0}]
[null,57,null,null,null,null,{"$f":"SUM(mahsolat[[#This Row],[مواد مصرفي]:[ساير هزينه ها]])","v":0},{"$f":"SUMIFS(data[مبلغ],data[كد],mahsolat[[#This Row],[كد]],data[گ],H$4)","v":0},{"$f":"SUMIFS(data[مبلغ],data[كد],mahsolat[[#This Row],[كد]],data[گ],I$4)","v":0},{"$f":"SUMIFS(data[مبلغ],data[كد],mahsolat[[#This Row],[كد]],data[گ],J$4)","v":0},{"$f":"SUMIFS(data[مبلغ],data[كد],mahsolat[[#This Row],[كد]],data[گ],K$4)","v":0},{"$f":"SUMIFS(data[مبلغ],data[كد],mahsolat[[#This Row],[كد]],data[گ],L$4)","v":0},{"$f":"SUMIFS(data[مبلغ],data[كد],mahsolat[[#This Row],[كد]],data[گ],M$4)","v":0}]
[null,58,null,null,null,null,{"$f":"SUM(mahsolat[[#This Row],[مواد مصرفي]:[ساير هزينه ها]])","v":0},{"$f":"SUMIFS(data[مبلغ],data[كد],mahsolat[[#This Row],[كد]],data[گ],H$4)","v":0},{"$f":"SUMIFS(data[مبلغ],data[كد],mahsolat[[#This Row],[كد]],data[گ],I$4)","v":0},{"$f":"SUMIFS(data[مبلغ],data[كد],mahsolat[[#This Row],[كد]],data[گ],J$4)","v":0},{"$f":"SUMIFS(data[مبلغ],data[كد],mahsolat[[#This Row],[كد]],data[گ],K$4)","v":0},{"$f":"SUMIFS(data[مبلغ],data[كد],mahsolat[[#This Row],[كد]],data[گ],L$4)","v":0},{"$f":"SUMIFS(data[مبلغ],data[كد],mahsolat[[#This Row],[كد]],data[گ],M$4)","v":0}]
[null,59,null,null,null,null,{"$f":"SUM(mahsolat[[#This Row],[مواد مصرفي]:[ساير هزينه ها]])","v":0},{"$f":"SUMIFS(data[مبلغ],data[كد],mahsolat[[#This Row],[كد]],data[گ],H$4)","v":0},{"$f":"SUMIFS(data[مبلغ],data[كد],mahsolat[[#This Row],[كد]],data[گ],I$4)","v":0},{"$f":"SUMIFS(data[مبلغ],data[كد],mahsolat[[#This Row],[كد]],data[گ],J$4)","v":0},{"$f":"SUMIFS(data[مبلغ],data[كد],mahsolat[[#This Row],[كد]],data[گ],K$4)","v":0},{"$f":"SUMIFS(data[مبلغ],data[كد],mahsolat[[#This Row],[كد]],data[گ],L$4)","v":0},{"$f":"SUMIFS(data[مبلغ],data[كد],mahsolat[[#This Row],[كد]],data[گ],M$4)","v":0}]
[null,60,null,null,null,null,{"$f":"SUM(mahsolat[[#This Row],[مواد مصرفي]:[ساير هزينه ها]])","v":0},{"$f":"SUMIFS(data[مبلغ],data[كد],mahsolat[[#This Row],[كد]],data[گ],H$4)","v":0},{"$f":"SUMIFS(data[مبلغ],data[كد],mahsolat[[#This Row],[كد]],data[گ],I$4)","v":0},{"$f":"SUMIFS(data[مبلغ],data[كد],mahsolat[[#This Row],[كد]],data[گ],J$4)","v":0},{"$f":"SUMIFS(data[مبلغ],data[كد],mahsolat[[#This Row],[كد]],data[گ],K$4)","v":0},{"$f":"SUMIFS(data[مبلغ],data[كد],mahsolat[[#This Row],[كد]],data[گ],L$4)","v":0},{"$f":"SUMIFS(data[مبلغ],data[كد],mahsolat[[#This Row],[كد]],data[گ],M$4)","v":0}]
[null,61,null,null,null,null,{"$f":"SUM(mahsolat[[#This Row],[مواد مصرفي]:[ساير هزينه ها]])","v":0},{"$f":"SUMIFS(data[مبلغ],data[كد],mahsolat[[#This Row],[كد]],data[گ],H$4)","v":0},{"$f":"SUMIFS(data[مبلغ],data[كد],mahsolat[[#This Row],[كد]],data[گ],I$4)","v":0},{"$f":"SUMIFS(data[مبلغ],data[كد],mahsolat[[#This Row],[كد]],data[گ],J$4)","v":0},{"$f":"SUMIFS(data[مبلغ],data[كد],mahsolat[[#This Row],[كد]],data[گ],K$4)","v":0},{"$f":"SUMIFS(data[مبلغ],data[كد],mahsolat[[#This Row],[كد]],data[گ],L$4)","v":0},{"$f":"SUMIFS(data[مبلغ],data[كد],mahsolat[[#This Row],[كد]],data[گ],M$4)","v":0}]
[null,62,null,null,null,null,{"$f":"SUM(mahsolat[[#This Row],[مواد مصرفي]:[ساير هزينه ها]])","v":0},{"$f":"SUMIFS(data[مبلغ],data[كد],mahsolat[[#This Row],[كد]],data[گ],H$4)","v":0},{"$f":"SUMIFS(data[مبلغ],data[كد],mahsolat[[#This Row],[كد]],data[گ],I$4)","v":0},{"$f":"SUMIFS(data[مبلغ],data[كد],mahsolat[[#This Row],[كد]],data[گ],J$4)","v":0},{"$f":"SUMIFS(data[مبلغ],data[كد],mahsolat[[#This Row],[كد]],data[گ],K$4)","v":0},{"$f":"SUMIFS(data[مبلغ],data[كد],mahsolat[[#This Row],[كد]],data[گ],L$4)","v":0},{"$f":"SUMIFS(data[مبلغ],data[كد],mahsolat[[#This Row],[كد]],data[گ],M$4)","v":0}]
[null,63,null,null,null,null,{"$f":"SUM(mahsolat[[#This Row],[مواد مصرفي]:[ساير هزينه ها]])","v":0},{"$f":"SUMIFS(data[مبلغ],data[كد],mahsolat[[#This Row],[كد]],data[گ],H$4)","v":0},{"$f":"SUMIFS(data[مبلغ],data[كد],mahsolat[[#This Row],[كد]],data[گ],I$4)","v":0},{"$f":"SUMIFS(data[مبلغ],data[كد],mahsolat[[#This Row],[كد]],data[گ],J$4)","v":0},{"$f":"SUMIFS(data[مبلغ],data[كد],mahsolat[[#This Row],[كد]],data[گ],K$4)","v":0},{"$f":"SUMIFS(data[مبلغ],data[كد],mahsolat[[#This Row],[كد]],data[گ],L$4)","v":0},{"$f":"SUMIFS(data[مبلغ],data[كد],mahsolat[[#This Row],[كد]],data[گ],M$4)","v":0}]
[null,64,null,null,null,null,{"$f":"SUM(mahsolat[[#This Row],[مواد مصرفي]:[ساير هزينه ها]])","v":0},{"$f":"SUMIFS(data[مبلغ],data[كد],mahsolat[[#This Row],[كد]],data[گ],H$4)","v":0},{"$f":"SUMIFS(data[مبلغ],data[كد],mahsolat[[#This Row],[كد]],data[گ],I$4)","v":0},{"$f":"SUMIFS(data[مبلغ],data[كد],mahsolat[[#This Row],[كد]],data[گ],J$4)","v":0},{"$f":"SUMIFS(data[مبلغ],data[كد],mahsolat[[#This Row],[كد]],data[گ],K$4)","v":0},{"$f":"SUMIFS(data[مبلغ],data[كد],mahsolat[[#This Row],[كد]],data[گ],L$4)","v":0},{"$f":"SUMIFS(data[مبلغ],data[كد],mahsolat[[#This Row],[كد]],data[گ],M$4)","v":0}]
[null,65,null,null,null,null,{"$f":"SUM(mahsolat[[#This Row],[مواد مصرفي]:[ساير هزينه ها]])","v":0},{"$f":"SUMIFS(data[مبلغ],data[كد],mahsolat[[#This Row],[كد]],data[گ],H$4)","v":0},{"$f":"SUMIFS(data[مبلغ],data[كد],mahsolat[[#This Row],[كد]],data[گ],I$4)","v":0},{"$f":"SUMIFS(data[مبلغ],data[كد],mahsolat[[#This Row],[كد]],data[گ],J$4)","v":0},{"$f":"SUMIFS(data[مبلغ],data[كد],mahsolat[[#This Row],[كد]],data[گ],K$4)","v":0},{"$f":"SUMIFS(data[مبلغ],data[كد],mahsolat[[#This Row],[كد]],data[گ],L$4)","v":0},{"$f":"SUMIFS(data[مبلغ],data[كد],mahsolat[[#This Row],[كد]],data[گ],M$4)","v":0}]
[null,66,null,null,null,null,{"$f":"SUM(mahsolat[[#This Row],[مواد مصرفي]:[ساير هزينه ها]])","v":0},{"$f":"SUMIFS(data[مبلغ],data[كد],mahsolat[[#This Row],[كد]],data[گ],H$4)","v":0},{"$f":"SUMIFS(data[مبلغ],data[كد],mahsolat[[#This Row],[كد]],data[گ],I$4)","v":0},{"$f":"SUMIFS(data[مبلغ],data[كد],mahsolat[[#This Row],[كد]],data[گ],J$4)","v":0},{"$f":"SUMIFS(data[مبلغ],data[كد],mahsolat[[#This Row],[كد]],data[گ],K$4)","v":0},{"$f":"SUMIFS(data[مبلغ],data[كد],mahsolat[[#This Row],[كد]],data[گ],L$4)","v":0},{"$f":"SUMIFS(data[مبلغ],data[كد],mahsolat[[#This Row],[كد]],data[گ],M$4)","v":0}]
[null,67,null,null,null,null,{"$f":"SUM(mahsolat[[#This Row],[مواد مصرفي]:[ساير هزينه ها]])","v":0},{"$f":"SUMIFS(data[مبلغ],data[كد],mahsolat[[#This Row],[كد]],data[گ],H$4)","v":0},{"$f":"SUMIFS(data[مبلغ],data[كد],mahsolat[[#This Row],[كد]],data[گ],I$4)","v":0},{"$f":"SUMIFS(data[مبلغ],data[كد],mahsolat[[#This Row],[كد]],data[گ],J$4)","v":0},{"$f":"SUMIFS(data[مبلغ],data[كد],mahsolat[[#This Row],[كد]],data[گ],K$4)","v":0},{"$f":"SUMIFS(data[مبلغ],data[كد],mahsolat[[#This Row],[كد]],data[گ],L$4)","v":0},{"$f":"SUMIFS(data[مبلغ],data[كد],mahsolat[[#This Row],[كد]],data[گ],M$4)","v":0}]
[null,68,null,null,null,null,{"$f":"SUM(mahsolat[[#This Row],[مواد مصرفي]:[ساير هزينه ها]])","v":0},{"$f":"SUMIFS(data[مبلغ],data[كد],mahsolat[[#This Row],[كد]],data[گ],H$4)","v":0},{"$f":"SUMIFS(data[مبلغ],data[كد],mahsolat[[#This Row],[كد]],data[گ],I$4)","v":0},{"$f":"SUMIFS(data[مبلغ],data[كد],mahsolat[[#This Row],[كد]],data[گ],J$4)","v":0},{"$f":"SUMIFS(data[مبلغ],data[كد],mahsolat[[#This Row],[كد]],data[گ],K$4)","v":0},{"$f":"SUMIFS(data[مبلغ],data[كد],mahsolat[[#This Row],[كد]],data[گ],L$4)","v":0},{"$f":"SUMIFS(data[مبلغ],data[كد],mahsolat[[#This Row],[كد]],data[گ],M$4)","v":0}]
[null,69,null,null,null,null,{"$f":"SUM(mahsolat[[#This Row],[مواد مصرفي]:[ساير هزينه ها]])","v":0},{"$f":"SUMIFS(data[مبلغ],data[كد],mahsolat[[#This Row],[كد]],data[گ],H$4)","v":0},{"$f":"SUMIFS(data[مبلغ],data[كد],mahsolat[[#This Row],[كد]],data[گ],I$4)","v":0},{"$f":"SUMIFS(data[مبلغ],data[كد],mahsolat[[#This Row],[كد]],data[گ],J$4)","v":0},{"$f":"SUMIFS(data[مبلغ],data[كد],mahsolat[[#This Row],[كد]],data[گ],K$4)","v":0},{"$f":"SUMIFS(data[مبلغ],data[كد],mahsolat[[#This Row],[كد]],data[گ],L$4)","v":0},{"$f":"SUMIFS(data[مبلغ],data[كد],mahsolat[[#This Row],[كد]],data[گ],M$4)","v":0}]
[null,70,null,null,null,null,{"$f":"SUM(mahsolat[[#This Row],[مواد مصرفي]:[ساير هزينه ها]])","v":0},{"$f":"SUMIFS(data[مبلغ],data[كد],mahsolat[[#This Row],[كد]],data[گ],H$4)","v":0},{"$f":"SUMIFS(data[مبلغ],data[كد],mahsolat[[#This Row],[كد]],data[گ],I$4)","v":0},{"$f":"SUMIFS(data[مبلغ],data[كد],mahsolat[[#This Row],[كد]],data[گ],J$4)","v":0},{"$f":"SUMIFS(data[مبلغ],data[كد],mahsolat[[#This Row],[كد]],data[گ],K$4)","v":0},{"$f":"SUMIFS(data[مبلغ],data[كد],mahsolat[[#This Row],[كد]],data[گ],L$4)","v":0},{"$f":"SUMIFS(data[مبلغ],data[كد],mahsolat[[#This Row],[كد]],data[گ],M$4)","v":0}]
[null,71,null,null,null,null,{"$f":"SUM(mahsolat[[#This Row],[مواد مصرفي]:[ساير هزينه ها]])","v":0},{"$f":"SUMIFS(data[مبلغ],data[كد],mahsolat[[#This Row],[كد]],data[گ],H$4)","v":0},{"$f":"SUMIFS(data[مبلغ],data[كد],mahsolat[[#This Row],[كد]],data[گ],I$4)","v":0},{"$f":"SUMIFS(data[مبلغ],data[كد],mahsolat[[#This Row],[كد]],data[گ],J$4)","v":0},{"$f":"SUMIFS(data[مبلغ],data[كد],mahsolat[[#This Row],[كد]],data[گ],K$4)","v":0},{"$f":"SUMIFS(data[مبلغ],data[كد],mahsolat[[#This Row],[كد]],data[گ],L$4)","v":0},{"$f":"SUMIFS(data[مبلغ],data[كد],mahsolat[[#This Row],[كد]],data[گ],M$4)","v":0}]
[null,72,null,null,null,null,{"$f":"SUM(mahsolat[[#This Row],[مواد مصرفي]:[ساير هزينه ها]])","v":0},{"$f":"SUMIFS(data[مبلغ],data[كد],mahsolat[[#This Row],[كد]],data[گ],H$4)","v":0},{"$f":"SUMIFS(data[مبلغ],data[كد],mahsolat[[#This Row],[كد]],data[گ],I$4)","v":0},{"$f":"SUMIFS(data[مبلغ],data[كد],mahsolat[[#This Row],[كد]],data[گ],J$4)","v":0},{"$f":"SUMIFS(data[مبلغ],data[كد],mahsolat[[#This Row],[كد]],data[گ],K$4)","v":0},{"$f":"SUMIFS(data[مبلغ],data[كد],mahsolat[[#This Row],[كد]],data[گ],L$4)","v":0},{"$f":"SUMIFS(data[مبلغ],data[كد],mahsolat[[#This Row],[كد]],data[گ],M$4)","v":0}]
[null,73,null,null,null,null,{"$f":"SUM(mahsolat[[#This Row],[مواد مصرفي]:[ساير هزينه ها]])","v":0},{"$f":"SUMIFS(data[مبلغ],data[كد],mahsolat[[#This Row],[كد]],data[گ],H$4)","v":0},{"$f":"SUMIFS(data[مبلغ],data[كد],mahsolat[[#This Row],[كد]],data[گ],I$4)","v":0},{"$f":"SUMIFS(data[مبلغ],data[كد],mahsolat[[#This Row],[كد]],data[گ],J$4)","v":0},{"$f":"SUMIFS(data[مبلغ],data[كد],mahsolat[[#This Row],[كد]],data[گ],K$4)","v":0},{"$f":"SUMIFS(data[مبلغ],data[كد],mahsolat[[#This Row],[كد]],data[گ],L$4)","v":0},{"$f":"SUMIFS(data[مبلغ],data[كد],mahsolat[[#This Row],[كد]],data[گ],M$4)","v":0}]
[null,74,null,null,null,null,{"$f":"SUM(mahsolat[[#This Row],[مواد مصرفي]:[ساير هزينه ها]])","v":0},{"$f":"SUMIFS(data[مبلغ],data[كد],mahsolat[[#This Row],[كد]],data[گ],H$4)","v":0},{"$f":"SUMIFS(data[مبلغ],data[كد],mahsolat[[#This Row],[كد]],data[گ],I$4)","v":0},{"$f":"SUMIFS(data[مبلغ],data[كد],mahsolat[[#This Row],[كد]],data[گ],J$4)","v":0},{"$f":"SUMIFS(data[مبلغ],data[كد],mahsolat[[#This Row],[كد]],data[گ],K$4)","v":0},{"$f":"SUMIFS(data[مبلغ],data[كد],mahsolat[[#This Row],[كد]],data[گ],L$4)","v":0},{"$f":"SUMIFS(data[مبلغ],data[كد],mahsolat[[#This Row],[كد]],data[گ],M$4)","v":0}]
[null,75,null,null,null,null,{"$f":"SUM(mahsolat[[#This Row],[مواد مصرفي]:[ساير هزينه ها]])","v":0},{"$f":"SUMIFS(data[مبلغ],data[كد],mahsolat[[#This Row],[كد]],data[گ],H$4)","v":0},{"$f":"SUMIFS(data[مبلغ],data[كد],mahsolat[[#This Row],[كد]],data[گ],I$4)","v":0},{"$f":"SUMIFS(data[مبلغ],data[كد],mahsolat[[#This Row],[كد]],data[گ],J$4)","v":0},{"$f":"SUMIFS(data[مبلغ],data[كد],mahsolat[[#This Row],[كد]],data[گ],K$4)","v":0},{"$f":"SUMIFS(data[مبلغ],data[كد],mahsolat[[#This Row],[كد]],data[گ],L$4)","v":0},{"$f":"SUMIFS(data[مبلغ],data[كد],mahsolat[[#This Row],[كد]],data[گ],M$4)","v":0}]
[null,76,null,null,null,null,{"$f":"SUM(mahsolat[[#This Row],[مواد مصرفي]:[ساير هزينه ها]])","v":0},{"$f":"SUMIFS(data[مبلغ],data[كد],mahsolat[[#This Row],[كد]],data[گ],H$4)","v":0},{"$f":"SUMIFS(data[مبلغ],data[كد],mahsolat[[#This Row],[كد]],data[گ],I$4)","v":0},{"$f":"SUMIFS(data[مبلغ],data[كد],mahsolat[[#This Row],[كد]],data[گ],J$4)","v":0},{"$f":"SUMIFS(data[مبلغ],data[كد],mahsolat[[#This Row],[كد]],data[گ],K$4)","v":0},{"$f":"SUMIFS(data[مبلغ],data[كد],mahsolat[[#This Row],[كد]],data[گ],L$4)","v":0},{"$f":"SUMIFS(data[مبلغ],data[كد],mahsolat[[#This Row],[كد]],data[گ],M$4)","v":0}]
[null,77,null,null,null,null,{"$f":"SUM(mahsolat[[#This Row],[مواد مصرفي]:[ساير هزينه ها]])","v":0},{"$f":"SUMIFS(data[مبلغ],data[كد],mahsolat[[#This Row],[كد]],data[گ],H$4)","v":0},{"$f":"SUMIFS(data[مبلغ],data[كد],mahsolat[[#This Row],[كد]],data[گ],I$4)","v":0},{"$f":"SUMIFS(data[مبلغ],data[كد],mahsolat[[#This Row],[كد]],data[گ],J$4)","v":0},{"$f":"SUMIFS(data[مبلغ],data[كد],mahsolat[[#This Row],[كد]],data[گ],K$4)","v":0},{"$f":"SUMIFS(data[مبلغ],data[كد],mahsolat[[#This Row],[كد]],data[گ],L$4)","v":0},{"$f":"SUMIFS(data[مبلغ],data[كد],mahsolat[[#This Row],[كد]],data[گ],M$4)","v":0}]
[null,78,null,null,null,null,{"$f":"SUM(mahsolat[[#This Row],[مواد مصرفي]:[ساير هزينه ها]])","v":0},{"$f":"SUMIFS(data[مبلغ],data[كد],mahsolat[[#This Row],[كد]],data[گ],H$4)","v":0},{"$f":"SUMIFS(data[مبلغ],data[كد],mahsolat[[#This Row],[كد]],data[گ],I$4)","v":0},{"$f":"SUMIFS(data[مبلغ],data[كد],mahsolat[[#This Row],[كد]],data[گ],J$4)","v":0},{"$f":"SUMIFS(data[مبلغ],data[كد],mahsolat[[#This Row],[كد]],data[گ],K$4)","v":0},{"$f":"SUMIFS(data[مبلغ],data[كد],mahsolat[[#This Row],[كد]],data[گ],L$4)","v":0},{"$f":"SUMIFS(data[مبلغ],data[كد],mahsolat[[#This Row],[كد]],data[گ],M$4)","v":0}]
[null,79,null,null,null,null,{"$f":"SUM(mahsolat[[#This Row],[مواد مصرفي]:[ساير هزينه ها]])","v":0},{"$f":"SUMIFS(data[مبلغ],data[كد],mahsolat[[#This Row],[كد]],data[گ],H$4)","v":0},{"$f":"SUMIFS(data[مبلغ],data[كد],mahsolat[[#This Row],[كد]],data[گ],I$4)","v":0},{"$f":"SUMIFS(data[مبلغ],data[كد],mahsolat[[#This Row],[كد]],data[گ],J$4)","v":0},{"$f":"SUMIFS(data[مبلغ],data[كد],mahsolat[[#This Row],[كد]],data[گ],K$4)","v":0},{"$f":"SUMIFS(data[مبلغ],data[كد],mahsolat[[#This Row],[كد]],data[گ],L$4)","v":0},{"$f":"SUMIFS(data[مبلغ],data[كد],mahsolat[[#This Row],[كد]],data[گ],M$4)","v":0}]
[null,80,null,null,null,null,{"$f":"SUM(mahsolat[[#This Row],[مواد مصرفي]:[ساير هزينه ها]])","v":0},{"$f":"SUMIFS(data[مبلغ],data[كد],mahsolat[[#This Row],[كد]],data[گ],H$4)","v":0},{"$f":"SUMIFS(data[مبلغ],data[كد],mahsolat[[#This Row],[كد]],data[گ],I$4)","v":0},{"$f":"SUMIFS(data[مبلغ],data[كد],mahsolat[[#This Row],[كد]],data[گ],J$4)","v":0},{"$f":"SUMIFS(data[مبلغ],data[كد],mahsolat[[#This Row],[كد]],data[گ],K$4)","v":0},{"$f":"SUMIFS(data[مبلغ],data[كد],mahsolat[[#This Row],[كد]],data[گ],L$4)","v":0},{"$f":"SUMIFS(data[مبلغ],data[كد],mahsolat[[#This Row],[كد]],data[گ],M$4)","v":0}]
[null,81,null,null,null,null,{"$f":"SUM(mahsolat[[#This Row],[مواد مصرفي]:[ساير هزينه ها]])","v":0},{"$f":"SUMIFS(data[مبلغ],data[كد],mahsolat[[#This Row],[كد]],data[گ],H$4)","v":0},{"$f":"SUMIFS(data[مبلغ],data[كد],mahsolat[[#This Row],[كد]],data[گ],I$4)","v":0},{"$f":"SUMIFS(data[مبلغ],data[كد],mahsolat[[#This Row],[كد]],data[گ],J$4)","v":0},{"$f":"SUMIFS(data[مبلغ],data[كد],mahsolat[[#This Row],[كد]],data[گ],K$4)","v":0},{"$f":"SUMIFS(data[مبلغ],data[كد],mahsolat[[#This Row],[كد]],data[گ],L$4)","v":0},{"$f":"SUMIFS(data[مبلغ],data[كد],mahsolat[[#This Row],[كد]],data[گ],M$4)","v":0}]
[null,82,null,null,null,null,{"$f":"SUM(mahsolat[[#This Row],[مواد مصرفي]:[ساير هزينه ها]])","v":0},{"$f":"SUMIFS(data[مبلغ],data[كد],mahsolat[[#This Row],[كد]],data[گ],H$4)","v":0},{"$f":"SUMIFS(data[مبلغ],data[كد],mahsolat[[#This Row],[كد]],data[گ],I$4)","v":0},{"$f":"SUMIFS(data[مبلغ],data[كد],mahsolat[[#This Row],[كد]],data[گ],J$4)","v":0},{"$f":"SUMIFS(data[مبلغ],data[كد],mahsolat[[#This Row],[كد]],data[گ],K$4)","v":0},{"$f":"SUMIFS(data[مبلغ],data[كد],mahsolat[[#This Row],[كد]],data[گ],L$4)","v":0},{"$f":"SUMIFS(data[مبلغ],data[كد],mahsolat[[#This Row],[كد]],data[گ],M$4)","v":0}]
[null,83,null,null,null,null,{"$f":"SUM(mahsolat[[#This Row],[مواد مصرفي]:[ساير هزينه ها]])","v":0},{"$f":"SUMIFS(data[مبلغ],data[كد],mahsolat[[#This Row],[كد]],data[گ],H$4)","v":0},{"$f":"SUMIFS(data[مبلغ],data[كد],mahsolat[[#This Row],[كد]],data[گ],I$4)","v":0},{"$f":"SUMIFS(data[مبلغ],data[كد],mahsolat[[#This Row],[كد]],data[گ],J$4)","v":0},{"$f":"SUMIFS(data[مبلغ],data[كد],mahsolat[[#This Row],[كد]],data[گ],K$4)","v":0},{"$f":"SUMIFS(data[مبلغ],data[كد],mahsolat[[#This Row],[كد]],data[گ],L$4)","v":0},{"$f":"SUMIFS(data[مبلغ],data[كد],mahsolat[[#This Row],[كد]],data[گ],M$4)","v":0}]
[null,84,null,null,null,null,{"$f":"SUM(mahsolat[[#This Row],[مواد مصرفي]:[ساير هزينه ها]])","v":0},{"$f":"SUMIFS(data[مبلغ],data[كد],mahsolat[[#This Row],[كد]],data[گ],H$4)","v":0},{"$f":"SUMIFS(data[مبلغ],data[كد],mahsolat[[#This Row],[كد]],data[گ],I$4)","v":0},{"$f":"SUMIFS(data[مبلغ],data[كد],mahsolat[[#This Row],[كد]],data[گ],J$4)","v":0},{"$f":"SUMIFS(data[مبلغ],data[كد],mahsolat[[#This Row],[كد]],data[گ],K$4)","v":0},{"$f":"SUMIFS(data[مبلغ],data[كد],mahsolat[[#This Row],[كد]],data[گ],L$4)","v":0},{"$f":"SUMIFS(data[مبلغ],data[كد],mahsolat[[#This Row],[كد]],data[گ],M$4)","v":0}]
[null,85,null,null,null,null,{"$f":"SUM(mahsolat[[#This Row],[مواد مصرفي]:[ساير هزينه ها]])","v":0},{"$f":"SUMIFS(data[مبلغ],data[كد],mahsolat[[#This Row],[كد]],data[گ],H$4)","v":0},{"$f":"SUMIFS(data[مبلغ],data[كد],mahsolat[[#This Row],[كد]],data[گ],I$4)","v":0},{"$f":"SUMIFS(data[مبلغ],data[كد],mahsolat[[#This Row],[كد]],data[گ],J$4)","v":0},{"$f":"SUMIFS(data[مبلغ],data[كد],mahsolat[[#This Row],[كد]],data[گ],K$4)","v":0},{"$f":"SUMIFS(data[مبلغ],data[كد],mahsolat[[#This Row],[كد]],data[گ],L$4)","v":0},{"$f":"SUMIFS(data[مبلغ],data[كد],mahsolat[[#This Row],[كد]],data[گ],M$4)","v":0}]
[null,86,null,null,null,null,{"$f":"SUM(mahsolat[[#This Row],[مواد مصرفي]:[ساير هزينه ها]])","v":0},{"$f":"SUMIFS(data[مبلغ],data[كد],mahsolat[[#This Row],[كد]],data[گ],H$4)","v":0},{"$f":"SUMIFS(data[مبلغ],data[كد],mahsolat[[#This Row],[كد]],data[گ],I$4)","v":0},{"$f":"SUMIFS(data[مبلغ],data[كد],mahsolat[[#This Row],[كد]],data[گ],J$4)","v":0},{"$f":"SUMIFS(data[مبلغ],data[كد],mahsolat[[#This Row],[كد]],data[گ],K$4)","v":0},{"$f":"SUMIFS(data[مبلغ],data[كد],mahsolat[[#This Row],[كد]],data[گ],L$4)","v":0},{"$f":"SUMIFS(data[مبلغ],data[كد],mahsolat[[#This Row],[كد]],data[گ],M$4)","v":0}]
[null,87,null,null,null,null,{"$f":"SUM(mahsolat[[#This Row],[مواد مصرفي]:[ساير هزينه ها]])","v":0},{"$f":"SUMIFS(data[مبلغ],data[كد],mahsolat[[#This Row],[كد]],data[گ],H$4)","v":0},{"$f":"SUMIFS(data[مبلغ],data[كد],mahsolat[[#This Row],[كد]],data[گ],I$4)","v":0},{"$f":"SUMIFS(data[مبلغ],data[كد],mahsolat[[#This Row],[كد]],data[گ],J$4)","v":0},{"$f":"SUMIFS(data[مبلغ],data[كد],mahsolat[[#This Row],[كد]],data[گ],K$4)","v":0},{"$f":"SUMIFS(data[مبلغ],data[كد],mahsolat[[#This Row],[كد]],data[گ],L$4)","v":0},{"$f":"SUMIFS(data[مبلغ],data[كد],mahsolat[[#This Row],[كد]],data[گ],M$4)","v":0}]
[null,88,null,null,null,null,{"$f":"SUM(mahsolat[[#This Row],[مواد مصرفي]:[ساير هزينه ها]])","v":0},{"$f":"SUMIFS(data[مبلغ],data[كد],mahsolat[[#This Row],[كد]],data[گ],H$4)","v":0},{"$f":"SUMIFS(data[مبلغ],data[كد],mahsolat[[#This Row],[كد]],data[گ],I$4)","v":0},{"$f":"SUMIFS(data[مبلغ],data[كد],mahsolat[[#This Row],[كد]],data[گ],J$4)","v":0},{"$f":"SUMIFS(data[مبلغ],data[كد],mahsolat[[#This Row],[كد]],data[گ],K$4)","v":0},{"$f":"SUMIFS(data[مبلغ],data[كد],mahsolat[[#This Row],[كد]],data[گ],L$4)","v":0},{"$f":"SUMIFS(data[مبلغ],data[كد],mahsolat[[#This Row],[كد]],data[گ],M$4)","v":0}]
[null,89,null,null,null,null,{"$f":"SUM(mahsolat[[#This Row],[مواد مصرفي]:[ساير هزينه ها]])","v":0},{"$f":"SUMIFS(data[مبلغ],data[كد],mahsolat[[#This Row],[كد]],data[گ],H$4)","v":0},{"$f":"SUMIFS(data[مبلغ],data[كد],mahsolat[[#This Row],[كد]],data[گ],I$4)","v":0},{"$f":"SUMIFS(data[مبلغ],data[كد],mahsolat[[#This Row],[كد]],data[گ],J$4)","v":0},{"$f":"SUMIFS(data[مبلغ],data[كد],mahsolat[[#This Row],[كد]],data[گ],K$4)","v":0},{"$f":"SUMIFS(data[مبلغ],data[كد],mahsolat[[#This Row],[كد]],data[گ],L$4)","v":0},{"$f":"SUMIFS(data[مبلغ],data[كد],mahsolat[[#This Row],[كد]],data[گ],M$4)","v":0}]
[null,90,null,null,null,null,{"$f":"SUM(mahsolat[[#This Row],[مواد مصرفي]:[ساير هزينه ها]])","v":0},{"$f":"SUMIFS(data[مبلغ],data[كد],mahsolat[[#This Row],[كد]],data[گ],H$4)","v":0},{"$f":"SUMIFS(data[مبلغ],data[كد],mahsolat[[#This Row],[كد]],data[گ],I$4)","v":0},{"$f":"SUMIFS(data[مبلغ],data[كد],mahsolat[[#This Row],[كد]],data[گ],J$4)","v":0},{"$f":"SUMIFS(data[مبلغ],data[كد],mahsolat[[#This Row],[كد]],data[گ],K$4)","v":0},{"$f":"SUMIFS(data[مبلغ],data[كد],mahsolat[[#This Row],[كد]],data[گ],L$4)","v":0},{"$f":"SUMIFS(data[مبلغ],data[كد],mahsolat[[#This Row],[كد]],data[گ],M$4)","v":0}]
[null,91,null,null,null,null,{"$f":"SUM(mahsolat[[#This Row],[مواد مصرفي]:[ساير هزينه ها]])","v":0},{"$f":"SUMIFS(data[مبلغ],data[كد],mahsolat[[#This Row],[كد]],data[گ],H$4)","v":0},{"$f":"SUMIFS(data[مبلغ],data[كد],mahsolat[[#This Row],[كد]],data[گ],I$4)","v":0},{"$f":"SUMIFS(data[مبلغ],data[كد],mahsolat[[#This Row],[كد]],data[گ],J$4)","v":0},{"$f":"SUMIFS(data[مبلغ],data[كد],mahsolat[[#This Row],[كد]],data[گ],K$4)","v":0},{"$f":"SUMIFS(data[مبلغ],data[كد],mahsolat[[#This Row],[كد]],data[گ],L$4)","v":0},{"$f":"SUMIFS(data[مبلغ],data[كد],mahsolat[[#This Row],[كد]],data[گ],M$4)","v":0}]
[null,92,null,null,null,null,{"$f":"SUM(mahsolat[[#This Row],[مواد مصرفي]:[ساير هزينه ها]])","v":0},{"$f":"SUMIFS(data[مبلغ],data[كد],mahsolat[[#This Row],[كد]],data[گ],H$4)","v":0},{"$f":"SUMIFS(data[مبلغ],data[كد],mahsolat[[#This Row],[كد]],data[گ],I$4)","v":0},{"$f":"SUMIFS(data[مبلغ],data[كد],mahsolat[[#This Row],[كد]],data[گ],J$4)","v":0},{"$f":"SUMIFS(data[مبلغ],data[كد],mahsolat[[#This Row],[كد]],data[گ],K$4)","v":0},{"$f":"SUMIFS(data[مبلغ],data[كد],mahsolat[[#This Row],[كد]],data[گ],L$4)","v":0},{"$f":"SUMIFS(data[مبلغ],data[كد],mahsolat[[#This Row],[كد]],data[گ],M$4)","v":0}]
[null,93,null,null,null,null,{"$f":"SUM(mahsolat[[#This Row],[مواد مصرفي]:[ساير هزينه ها]])","v":0},{"$f":"SUMIFS(data[مبلغ],data[كد],mahsolat[[#This Row],[كد]],data[گ],H$4)","v":0},{"$f":"SUMIFS(data[مبلغ],data[كد],mahsolat[[#This Row],[كد]],data[گ],I$4)","v":0},{"$f":"SUMIFS(data[مبلغ],data[كد],mahsolat[[#This Row],[كد]],data[گ],J$4)","v":0},{"$f":"SUMIFS(data[مبلغ],data[كد],mahsolat[[#This Row],[كد]],data[گ],K$4)","v":0},{"$f":"SUMIFS(data[مبلغ],data[كد],mahsolat[[#This Row],[كد]],data[گ],L$4)","v":0},{"$f":"SUMIFS(data[مبلغ],data[كد],mahsolat[[#This Row],[كد]],data[گ],M$4)","v":0}]
[null,94,null,null,null,null,{"$f":"SUM(mahsolat[[#This Row],[مواد مصرفي]:[ساير هزينه ها]])","v":0},{"$f":"SUMIFS(data[مبلغ],data[كد],mahsolat[[#This Row],[كد]],data[گ],H$4)","v":0},{"$f":"SUMIFS(data[مبلغ],data[كد],mahsolat[[#This Row],[كد]],data[گ],I$4)","v":0},{"$f":"SUMIFS(data[مبلغ],data[كد],mahsolat[[#This Row],[كد]],data[گ],J$4)","v":0},{"$f":"SUMIFS(data[مبلغ],data[كد],mahsolat[[#This Row],[كد]],data[گ],K$4)","v":0},{"$f":"SUMIFS(data[مبلغ],data[كد],mahsolat[[#This Row],[كد]],data[گ],L$4)","v":0},{"$f":"SUMIFS(data[مبلغ],data[كد],mahsolat[[#This Row],[كد]],data[گ],M$4)","v":0}]
[null,95,null,null,null,null,{"$f":"SUM(mahsolat[[#This Row],[مواد مصرفي]:[ساير هزينه ها]])","v":0},{"$f":"SUMIFS(data[مبلغ],data[كد],mahsolat[[#This Row],[كد]],data[گ],H$4)","v":0},{"$f":"SUMIFS(data[مبلغ],data[كد],mahsolat[[#This Row],[كد]],data[گ],I$4)","v":0},{"$f":"SUMIFS(data[مبلغ],data[كد],mahsolat[[#This Row],[كد]],data[گ],J$4)","v":0},{"$f":"SUMIFS(data[مبلغ],data[كد],mahsolat[[#This Row],[كد]],data[گ],K$4)","v":0},{"$f":"SUMIFS(data[مبلغ],data[كد],mahsolat[[#This Row],[كد]],data[گ],L$4)","v":0},{"$f":"SUMIFS(data[مبلغ],data[كد],mahsolat[[#This Row],[كد]],data[گ],M$4)","v":0}]
[null,96,null,null,null,null,{"$f":"SUM(mahsolat[[#This Row],[مواد مصرفي]:[ساير هزينه ها]])","v":0},{"$f":"SUMIFS(data[مبلغ],data[كد],mahsolat[[#This Row],[كد]],data[گ],H$4)","v":0},{"$f":"SUMIFS(data[مبلغ],data[كد],mahsolat[[#This Row],[كد]],data[گ],I$4)","v":0},{"$f":"SUMIFS(data[مبلغ],data[كد],mahsolat[[#This Row],[كد]],data[گ],J$4)","v":0},{"$f":"SUMIFS(data[مبلغ],data[كد],mahsolat[[#This Row],[كد]],data[گ],K$4)","v":0},{"$f":"SUMIFS(data[مبلغ],data[كد],mahsolat[[#This Row],[كد]],data[گ],L$4)","v":0},{"$f":"SUMIFS(data[مبلغ],data[كد],mahsolat[[#This Row],[كد]],data[گ],M$4)","v":0}]
[null,97,null,null,null,null,{"$f":"SUM(mahsolat[[#This Row],[مواد مصرفي]:[ساير هزينه ها]])","v":0},{"$f":"SUMIFS(data[مبلغ],data[كد],mahsolat[[#This Row],[كد]],data[گ],H$4)","v":0},{"$f":"SUMIFS(data[مبلغ],data[كد],mahsolat[[#This Row],[كد]],data[گ],I$4)","v":0},{"$f":"SUMIFS(data[مبلغ],data[كد],mahsolat[[#This Row],[كد]],data[گ],J$4)","v":0},{"$f":"SUMIFS(data[مبلغ],data[كد],mahsolat[[#This Row],[كد]],data[گ],K$4)","v":0},{"$f":"SUMIFS(data[مبلغ],data[كد],mahsolat[[#This Row],[كد]],data[گ],L$4)","v":0},{"$f":"SUMIFS(data[مبلغ],data[كد],mahsolat[[#This Row],[كد]],data[گ],M$4)","v":0}]
[null,98,null,null,null,null,{"$f":"SUM(mahsolat[[#This Row],[مواد مصرفي]:[ساير هزينه ها]])","v":0},{"$f":"SUMIFS(data[مبلغ],data[كد],mahsolat[[#This Row],[كد]],data[گ],H$4)","v":0},{"$f":"SUMIFS(data[مبلغ],data[كد],mahsolat[[#This Row],[كد]],data[گ],I$4)","v":0},{"$f":"SUMIFS(data[مبلغ],data[كد],mahsolat[[#This Row],[كد]],data[گ],J$4)","v":0},{"$f":"SUMIFS(data[مبلغ],data[كد],mahsolat[[#This Row],[كد]],data[گ],K$4)","v":0},{"$f":"SUMIFS(data[مبلغ],data[كد],mahsolat[[#This Row],[كد]],data[گ],L$4)","v":0},{"$f":"SUMIFS(data[مبلغ],data[كد],mahsolat[[#This Row],[كد]],data[گ],M$4)","v":0}]
[null,99,null,null,null,null,{"$f":"SUM(mahsolat[[#This Row],[مواد مصرفي]:[ساير هزينه ها]])","v":0},{"$f":"SUMIFS(data[مبلغ],data[كد],mahsolat[[#This Row],[كد]],data[گ],H$4)","v":0},{"$f":"SUMIFS(data[مبلغ],data[كد],mahsolat[[#This Row],[كد]],data[گ],I$4)","v":0},{"$f":"SUMIFS(data[مبلغ],data[كد],mahsolat[[#This Row],[كد]],data[گ],J$4)","v":0},{"$f":"SUMIFS(data[مبلغ],data[كد],mahsolat[[#This Row],[كد]],data[گ],K$4)","v":0},{"$f":"SUMIFS(data[مبلغ],data[كد],mahsolat[[#This Row],[كد]],data[گ],L$4)","v":0},{"$f":"SUMIFS(data[مبلغ],data[كد],mahsolat[[#This Row],[كد]],data[گ],M$4)","v":0}]
[null,100,null,null,null,null,{"$f":"SUM(mahsolat[[#This Row],[مواد مصرفي]:[ساير هزينه ها]])","v":0},{"$f":"SUMIFS(data[مبلغ],data[كد],mahsolat[[#This Row],[كد]],data[گ],H$4)","v":0},{"$f":"SUMIFS(data[مبلغ],data[كد],mahsolat[[#This Row],[كد]],data[گ],I$4)","v":0},{"$f":"SUMIFS(data[مبلغ],data[كد],mahsolat[[#This Row],[كد]],data[گ],J$4)","v":0},{"$f":"SUMIFS(data[مبلغ],data[كد],mahsolat[[#This Row],[كد]],data[گ],K$4)","v":0},{"$f":"SUMIFS(data[مبلغ],data[كد],mahsolat[[#This Row],[كد]],data[گ],L$4)","v":0},{"$f":"SUMIFS(data[مبلغ],data[كد],mahsolat[[#This Row],[كد]],data[گ],M$4)","v":0}]
[null,101,null,null,null,null,{"$f":"SUM(mahsolat[[#This Row],[مواد مصرفي]:[ساير هزينه ها]])","v":0},{"$f":"SUMIFS(data[مبلغ],data[كد],mahsolat[[#This Row],[كد]],data[گ],H$4)","v":0},{"$f":"SUMIFS(data[مبلغ],data[كد],mahsolat[[#This Row],[كد]],data[گ],I$4)","v":0},{"$f":"SUMIFS(data[مبلغ],data[كد],mahsolat[[#This Row],[كد]],data[گ],J$4)","v":0},{"$f":"SUMIFS(data[مبلغ],data[كد],mahsolat[[#This Row],[كد]],data[گ],K$4)","v":0},{"$f":"SUMIFS(data[مبلغ],data[كد],mahsolat[[#This Row],[كد]],data[گ],L$4)","v":0},{"$f":"SUMIFS(data[مبلغ],data[كد],mahsolat[[#This Row],[كد]],data[گ],M$4)","v":0}]
[null,102,null,null,null,null,{"$f":"SUM(mahsolat[[#This Row],[مواد مصرفي]:[ساير هزينه ها]])","v":0},{"$f":"SUMIFS(data[مبلغ],data[كد],mahsolat[[#This Row],[كد]],data[گ],H$4)","v":0},{"$f":"SUMIFS(data[مبلغ],data[كد],mahsolat[[#This Row],[كد]],data[گ],I$4)","v":0},{"$f":"SUMIFS(data[مبلغ],data[كد],mahsolat[[#This Row],[كد]],data[گ],J$4)","v":0},{"$f":"SUMIFS(data[مبلغ],data[كد],mahsolat[[#This Row],[كد]],data[گ],K$4)","v":0},{"$f":"SUMIFS(data[مبلغ],data[كد],mahsolat[[#This Row],[كد]],data[گ],L$4)","v":0},{"$f":"SUMIFS(data[مبلغ],data[كد],mahsolat[[#This Row],[كد]],data[گ],M$4)","v":0}]
[null,103,null,null,null,null,{"$f":"SUM(mahsolat[[#This Row],[مواد مصرفي]:[ساير هزينه ها]])","v":0},{"$f":"SUMIFS(data[مبلغ],data[كد],mahsolat[[#This Row],[كد]],data[گ],H$4)","v":0},{"$f":"SUMIFS(data[مبلغ],data[كد],mahsolat[[#This Row],[كد]],data[گ],I$4)","v":0},{"$f":"SUMIFS(data[مبلغ],data[كد],mahsolat[[#This Row],[كد]],data[گ],J$4)","v":0},{"$f":"SUMIFS(data[مبلغ],data[كد],mahsolat[[#This Row],[كد]],data[گ],K$4)","v":0},{"$f":"SUMIFS(data[مبلغ],data[كد],mahsolat[[#This Row],[كد]],data[گ],L$4)","v":0},{"$f":"SUMIFS(data[مبلغ],data[كد],mahsolat[[#This Row],[كد]],data[گ],M$4)","v":0}]
[null,104,null,null,null,null,{"$f":"SUM(mahsolat[[#This Row],[مواد مصرفي]:[ساير هزينه ها]])","v":0},{"$f":"SUMIFS(data[مبلغ],data[كد],mahsolat[[#This Row],[كد]],data[گ],H$4)","v":0},{"$f":"SUMIFS(data[مبلغ],data[كد],mahsolat[[#This Row],[كد]],data[گ],I$4)","v":0},{"$f":"SUMIFS(data[مبلغ],data[كد],mahsolat[[#This Row],[كد]],data[گ],J$4)","v":0},{"$f":"SUMIFS(data[مبلغ],data[كد],mahsolat[[#This Row],[كد]],data[گ],K$4)","v":0},{"$f":"SUMIFS(data[مبلغ],data[كد],mahsolat[[#This Row],[كد]],data[گ],L$4)","v":0},{"$f":"SUMIFS(data[مبلغ],data[كد],mahsolat[[#This Row],[كد]],data[گ],M$4)","v":0}]
[null,105,null,null,null,null,{"$f":"SUM(mahsolat[[#This Row],[مواد مصرفي]:[ساير هزينه ها]])","v":0},{"$f":"SUMIFS(data[مبلغ],data[كد],mahsolat[[#This Row],[كد]],data[گ],H$4)","v":0},{"$f":"SUMIFS(data[مبلغ],data[كد],mahsolat[[#This Row],[كد]],data[گ],I$4)","v":0},{"$f":"SUMIFS(data[مبلغ],data[كد],mahsolat[[#This Row],[كد]],data[گ],J$4)","v":0},{"$f":"SUMIFS(data[مبلغ],data[كد],mahsolat[[#This Row],[كد]],data[گ],K$4)","v":0},{"$f":"SUMIFS(data[مبلغ],data[كد],mahsolat[[#This Row],[كد]],data[گ],L$4)","v":0},{"$f":"SUMIFS(data[مبلغ],data[كد],mahsolat[[#This Row],[كد]],data[گ],M$4)","v":0}]
[null,106,null,null,null,null,{"$f":"SUM(mahsolat[[#This Row],[مواد مصرفي]:[ساير هزينه ها]])","v":0},{"$f":"SUMIFS(data[مبلغ],data[كد],mahsolat[[#This Row],[كد]],data[گ],H$4)","v":0},{"$f":"SUMIFS(data[مبلغ],data[كد],mahsolat[[#This Row],[كد]],data[گ],I$4)","v":0},{"$f":"SUMIFS(data[مبلغ],data[كد],mahsolat[[#This Row],[كد]],data[گ],J$4)","v":0},{"$f":"SUMIFS(data[مبلغ],data[كد],mahsolat[[#This Row],[كد]],data[گ],K$4)","v":0},{"$f":"SUMIFS(data[مبلغ],data[كد],mahsolat[[#This Row],[كد]],data[گ],L$4)","v":0},{"$f":"SUMIFS(data[مبلغ],data[كد],mahsolat[[#This Row],[كد]],data[گ],M$4)","v":0}]
[null,107,null,null,null,null,{"$f":"SUM(mahsolat[[#This Row],[مواد مصرفي]:[ساير هزينه ها]])","v":0},{"$f":"SUMIFS(data[مبلغ],data[كد],mahsolat[[#This Row],[كد]],data[گ],H$4)","v":0},{"$f":"SUMIFS(data[مبلغ],data[كد],mahsolat[[#This Row],[كد]],data[گ],I$4)","v":0},{"$f":"SUMIFS(data[مبلغ],data[كد],mahsolat[[#This Row],[كد]],data[گ],J$4)","v":0},{"$f":"SUMIFS(data[مبلغ],data[كد],mahsolat[[#This Row],[كد]],data[گ],K$4)","v":0},{"$f":"SUMIFS(data[مبلغ],data[كد],mahsolat[[#This Row],[كد]],data[گ],L$4)","v":0},{"$f":"SUMIFS(data[مبلغ],data[كد],mahsolat[[#This Row],[كد]],data[گ],M$4)","v":0}]
[null,108,null,null,null,null,{"$f":"SUM(mahsolat[[#This Row],[مواد مصرفي]:[ساير هزينه ها]])","v":0},{"$f":"SUMIFS(data[مبلغ],data[كد],mahsolat[[#This Row],[كد]],data[گ],H$4)","v":0},{"$f":"SUMIFS(data[مبلغ],data[كد],mahsolat[[#This Row],[كد]],data[گ],I$4)","v":0},{"$f":"SUMIFS(data[مبلغ],data[كد],mahsolat[[#This Row],[كد]],data[گ],J$4)","v":0},{"$f":"SUMIFS(data[مبلغ],data[كد],mahsolat[[#This Row],[كد]],data[گ],K$4)","v":0},{"$f":"SUMIFS(data[مبلغ],data[كد],mahsolat[[#This Row],[كد]],data[گ],L$4)","v":0},{"$f":"SUMIFS(data[مبلغ],data[كد],mahsolat[[#This Row],[كد]],data[گ],M$4)","v":0}]
[null,109,null,null,null,null,{"$f":"SUM(mahsolat[[#This Row],[مواد مصرفي]:[ساير هزينه ها]])","v":0},{"$f":"SUMIFS(data[مبلغ],data[كد],mahsolat[[#This Row],[كد]],data[گ],H$4)","v":0},{"$f":"SUMIFS(data[مبلغ],data[كد],mahsolat[[#This Row],[كد]],data[گ],I$4)","v":0},{"$f":"SUMIFS(data[مبلغ],data[كد],mahsolat[[#This Row],[كد]],data[گ],J$4)","v":0},{"$f":"SUMIFS(data[مبلغ],data[كد],mahsolat[[#This Row],[كد]],data[گ],K$4)","v":0},{"$f":"SUMIFS(data[مبلغ],data[كد],mahsolat[[#This Row],[كد]],data[گ],L$4)","v":0},{"$f":"SUMIFS(data[مبلغ],data[كد],mahsolat[[#This Row],[كد]],data[گ],M$4)","v":0}]
[null,110,null,null,null,null,{"$f":"SUM(mahsolat[[#This Row],[مواد مصرفي]:[ساير هزينه ها]])","v":0},{"$f":"SUMIFS(data[مبلغ],data[كد],mahsolat[[#This Row],[كد]],data[گ],H$4)","v":0},{"$f":"SUMIFS(data[مبلغ],data[كد],mahsolat[[#This Row],[كد]],data[گ],I$4)","v":0},{"$f":"SUMIFS(data[مبلغ],data[كد],mahsolat[[#This Row],[كد]],data[گ],J$4)","v":0},{"$f":"SUMIFS(data[مبلغ],data[كد],mahsolat[[#This Row],[كد]],data[گ],K$4)","v":0},{"$f":"SUMIFS(data[مبلغ],data[كد],mahsolat[[#This Row],[كد]],data[گ],L$4)","v":0},{"$f":"SUMIFS(data[مبلغ],data[كد],mahsolat[[#This Row],[كد]],data[گ],M$4)","v":0}]
[null,111,null,null,null,null,{"$f":"SUM(mahsolat[[#This Row],[مواد مصرفي]:[ساير هزينه ها]])","v":0},{"$f":"SUMIFS(data[مبلغ],data[كد],mahsolat[[#This Row],[كد]],data[گ],H$4)","v":0},{"$f":"SUMIFS(data[مبلغ],data[كد],mahsolat[[#This Row],[كد]],data[گ],I$4)","v":0},{"$f":"SUMIFS(data[مبلغ],data[كد],mahsolat[[#This Row],[كد]],data[گ],J$4)","v":0},{"$f":"SUMIFS(data[مبلغ],data[كد],mahsolat[[#This Row],[كد]],data[گ],K$4)","v":0},{"$f":"SUMIFS(data[مبلغ],data[كد],mahsolat[[#This Row],[كد]],data[گ],L$4)","v":0},{"$f":"SUMIFS(data[مبلغ],data[كد],mahsolat[[#This Row],[كد]],data[گ],M$4)","v":0}]
[null,112,null,null,null,null,{"$f":"SUM(mahsolat[[#This Row],[مواد مصرفي]:[ساير هزينه ها]])","v":0},{"$f":"SUMIFS(data[مبلغ],data[كد],mahsolat[[#This Row],[كد]],data[گ],H$4)","v":0},{"$f":"SUMIFS(data[مبلغ],data[كد],mahsolat[[#This Row],[كد]],data[گ],I$4)","v":0},{"$f":"SUMIFS(data[مبلغ],data[كد],mahsolat[[#This Row],[كد]],data[گ],J$4)","v":0},{"$f":"SUMIFS(data[مبلغ],data[كد],mahsolat[[#This Row],[كد]],data[گ],K$4)","v":0},{"$f":"SUMIFS(data[مبلغ],data[كد],mahsolat[[#This Row],[كد]],data[گ],L$4)","v":0},{"$f":"SUMIFS(data[مبلغ],data[كد],mahsolat[[#This Row],[كد]],data[گ],M$4)","v":0}]
[null,113,null,null,null,null,{"$f":"SUM(mahsolat[[#This Row],[مواد مصرفي]:[ساير هزينه ها]])","v":0},{"$f":"SUMIFS(data[مبلغ],data[كد],mahsolat[[#This Row],[كد]],data[گ],H$4)","v":0},{"$f":"SUMIFS(data[مبلغ],data[كد],mahsolat[[#This Row],[كد]],data[گ],I$4)","v":0},{"$f":"SUMIFS(data[مبلغ],data[كد],mahsolat[[#This Row],[كد]],data[گ],J$4)","v":0},{"$f":"SUMIFS(data[مبلغ],data[كد],mahsolat[[#This Row],[كد]],data[گ],K$4)","v":0},{"$f":"SUMIFS(data[مبلغ],data[كد],mahsolat[[#This Row],[كد]],data[گ],L$4)","v":0},{"$f":"SUMIFS(data[مبلغ],data[كد],mahsolat[[#This Row],[كد]],data[گ],M$4)","v":0}]
[null,114,null,null,null,null,{"$f":"SUM(mahsolat[[#This Row],[مواد مصرفي]:[ساير هزينه ها]])","v":0},{"$f":"SUMIFS(data[مبلغ],data[كد],mahsolat[[#This Row],[كد]],data[گ],H$4)","v":0},{"$f":"SUMIFS(data[مبلغ],data[كد],mahsolat[[#This Row],[كد]],data[گ],I$4)","v":0},{"$f":"SUMIFS(data[مبلغ],data[كد],mahsolat[[#This Row],[كد]],data[گ],J$4)","v":0},{"$f":"SUMIFS(data[مبلغ],data[كد],mahsolat[[#This Row],[كد]],data[گ],K$4)","v":0},{"$f":"SUMIFS(data[مبلغ],data[كد],mahsolat[[#This Row],[كد]],data[گ],L$4)","v":0},{"$f":"SUMIFS(data[مبلغ],data[كد],mahsolat[[#This Row],[كد]],data[گ],M$4)","v":0}]
[null,115,null,null,null,null,{"$f":"SUM(mahsolat[[#This Row],[مواد مصرفي]:[ساير هزينه ها]])","v":0},{"$f":"SUMIFS(data[مبلغ],data[كد],mahsolat[[#This Row],[كد]],data[گ],H$4)","v":0},{"$f":"SUMIFS(data[مبلغ],data[كد],mahsolat[[#This Row],[كد]],data[گ],I$4)","v":0},{"$f":"SUMIFS(data[مبلغ],data[كد],mahsolat[[#This Row],[كد]],data[گ],J$4)","v":0},{"$f":"SUMIFS(data[مبلغ],data[كد],mahsolat[[#This Row],[كد]],data[گ],K$4)","v":0},{"$f":"SUMIFS(data[مبلغ],data[كد],mahsolat[[#This Row],[كد]],data[گ],L$4)","v":0},{"$f":"SUMIFS(data[مبلغ],data[كد],mahsolat[[#This Row],[كد]],data[گ],M$4)","v":0}]
[null,116,null,null,null,null,{"$f":"SUM(mahsolat[[#This Row],[مواد مصرفي]:[ساير هزينه ها]])","v":0},{"$f":"SUMIFS(data[مبلغ],data[كد],mahsolat[[#This Row],[كد]],data[گ],H$4)","v":0},{"$f":"SUMIFS(data[مبلغ],data[كد],mahsolat[[#This Row],[كد]],data[گ],I$4)","v":0},{"$f":"SUMIFS(data[مبلغ],data[كد],mahsolat[[#This Row],[كد]],data[گ],J$4)","v":0},{"$f":"SUMIFS(data[مبلغ],data[كد],mahsolat[[#This Row],[كد]],data[گ],K$4)","v":0},{"$f":"SUMIFS(data[مبلغ],data[كد],mahsolat[[#This Row],[كد]],data[گ],L$4)","v":0},{"$f":"SUMIFS(data[مبلغ],data[كد],mahsolat[[#This Row],[كد]],data[گ],M$4)","v":0}]
[null,117,null,null,null,null,{"$f":"SUM(mahsolat[[#This Row],[مواد مصرفي]:[ساير هزينه ها]])","v":0},{"$f":"SUMIFS(data[مبلغ],data[كد],mahsolat[[#This Row],[كد]],data[گ],H$4)","v":0},{"$f":"SUMIFS(data[مبلغ],data[كد],mahsolat[[#This Row],[كد]],data[گ],I$4)","v":0},{"$f":"SUMIFS(data[مبلغ],data[كد],mahsolat[[#This Row],[كد]],data[گ],J$4)","v":0},{"$f":"SUMIFS(data[مبلغ],data[كد],mahsolat[[#This Row],[كد]],data[گ],K$4)","v":0},{"$f":"SUMIFS(data[مبلغ],data[كد],mahsolat[[#This Row],[كد]],data[گ],L$4)","v":0},{"$f":"SUMIFS(data[مبلغ],data[كد],mahsolat[[#This Row],[كد]],data[گ],M$4)","v":0}]
[null,118,null,null,null,null,{"$f":"SUM(mahsolat[[#This Row],[مواد مصرفي]:[ساير هزينه ها]])","v":0},{"$f":"SUMIFS(data[مبلغ],data[كد],mahsolat[[#This Row],[كد]],data[گ],H$4)","v":0},{"$f":"SUMIFS(data[مبلغ],data[كد],mahsolat[[#This Row],[كد]],data[گ],I$4)","v":0},{"$f":"SUMIFS(data[مبلغ],data[كد],mahsolat[[#This Row],[كد]],data[گ],J$4)","v":0},{"$f":"SUMIFS(data[مبلغ],data[كد],mahsolat[[#This Row],[كد]],data[گ],K$4)","v":0},{"$f":"SUMIFS(data[مبلغ],data[كد],mahsolat[[#This Row],[كد]],data[گ],L$4)","v":0},{"$f":"SUMIFS(data[مبلغ],data[كد],mahsolat[[#This Row],[كد]],data[گ],M$4)","v":0}]
[null,119,null,null,null,null,{"$f":"SUM(mahsolat[[#This Row],[مواد مصرفي]:[ساير هزينه ها]])","v":0},{"$f":"SUMIFS(data[مبلغ],data[كد],mahsolat[[#This Row],[كد]],data[گ],H$4)","v":0},{"$f":"SUMIFS(data[مبلغ],data[كد],mahsolat[[#This Row],[كد]],data[گ],I$4)","v":0},{"$f":"SUMIFS(data[مبلغ],data[كد],mahsolat[[#This Row],[كد]],data[گ],J$4)","v":0},{"$f":"SUMIFS(data[مبلغ],data[كد],mahsolat[[#This Row],[كد]],data[گ],K$4)","v":0},{"$f":"SUMIFS(data[مبلغ],data[كد],mahsolat[[#This Row],[كد]],data[گ],L$4)","v":0},{"$f":"SUMIFS(data[مبلغ],data[كد],mahsolat[[#This Row],[كد]],data[گ],M$4)","v":0}]
[null,120,null,null,null,null,{"$f":"SUM(mahsolat[[#This Row],[مواد مصرفي]:[ساير هزينه ها]])","v":0},{"$f":"SUMIFS(data[مبلغ],data[كد],mahsolat[[#This Row],[كد]],data[گ],H$4)","v":0},{"$f":"SUMIFS(data[مبلغ],data[كد],mahsolat[[#This Row],[كد]],data[گ],I$4)","v":0},{"$f":"SUMIFS(data[مبلغ],data[كد],mahsolat[[#This Row],[كد]],data[گ],J$4)","v":0},{"$f":"SUMIFS(data[مبلغ],data[كد],mahsolat[[#This Row],[كد]],data[گ],K$4)","v":0},{"$f":"SUMIFS(data[مبلغ],data[كد],mahsolat[[#This Row],[كد]],data[گ],L$4)","v":0},{"$f":"SUMIFS(data[مبلغ],data[كد],mahsolat[[#This Row],[كد]],data[گ],M$4)","v":0}]
[null,121,null,null,null,null,{"$f":"SUM(mahsolat[[#This Row],[مواد مصرفي]:[ساير هزينه ها]])","v":0},{"$f":"SUMIFS(data[مبلغ],data[كد],mahsolat[[#This Row],[كد]],data[گ],H$4)","v":0},{"$f":"SUMIFS(data[مبلغ],data[كد],mahsolat[[#This Row],[كد]],data[گ],I$4)","v":0},{"$f":"SUMIFS(data[مبلغ],data[كد],mahsolat[[#This Row],[كد]],data[گ],J$4)","v":0},{"$f":"SUMIFS(data[مبلغ],data[كد],mahsolat[[#This Row],[كد]],data[گ],K$4)","v":0},{"$f":"SUMIFS(data[مبلغ],data[كد],mahsolat[[#This Row],[كد]],data[گ],L$4)","v":0},{"$f":"SUMIFS(data[مبلغ],data[كد],mahsolat[[#This Row],[كد]],data[گ],M$4)","v":0}]
[null,122,null,null,null,null,{"$f":"SUM(mahsolat[[#This Row],[مواد مصرفي]:[ساير هزينه ها]])","v":0},{"$f":"SUMIFS(data[مبلغ],data[كد],mahsolat[[#This Row],[كد]],data[گ],H$4)","v":0},{"$f":"SUMIFS(data[مبلغ],data[كد],mahsolat[[#This Row],[كد]],data[گ],I$4)","v":0},{"$f":"SUMIFS(data[مبلغ],data[كد],mahsolat[[#This Row],[كد]],data[گ],J$4)","v":0},{"$f":"SUMIFS(data[مبلغ],data[كد],mahsolat[[#This Row],[كد]],data[گ],K$4)","v":0},{"$f":"SUMIFS(data[مبلغ],data[كد],mahsolat[[#This Row],[كد]],data[گ],L$4)","v":0},{"$f":"SUMIFS(data[مبلغ],data[كد],mahsolat[[#This Row],[كد]],data[گ],M$4)","v":0}]
[null,123,null,null,null,null,{"$f":"SUM(mahsolat[[#This Row],[مواد مصرفي]:[ساير هزينه ها]])","v":0},{"$f":"SUMIFS(data[مبلغ],data[كد],mahsolat[[#This Row],[كد]],data[گ],H$4)","v":0},{"$f":"SUMIFS(data[مبلغ],data[كد],mahsolat[[#This Row],[كد]],data[گ],I$4)","v":0},{"$f":"SUMIFS(data[مبلغ],data[كد],mahsolat[[#This Row],[كد]],data[گ],J$4)","v":0},{"$f":"SUMIFS(data[مبلغ],data[كد],mahsolat[[#This Row],[كد]],data[گ],K$4)","v":0},{"$f":"SUMIFS(data[مبلغ],data[كد],mahsolat[[#This Row],[كد]],data[گ],L$4)","v":0},{"$f":"SUMIFS(data[مبلغ],data[كد],mahsolat[[#This Row],[كد]],data[گ],M$4)","v":0}]
[null,124,null,null,null,null,{"$f":"SUM(mahsolat[[#This Row],[مواد مصرفي]:[ساير هزينه ها]])","v":0},{"$f":"SUMIFS(data[مبلغ],data[كد],mahsolat[[#This Row],[كد]],data[گ],H$4)","v":0},{"$f":"SUMIFS(data[مبلغ],data[كد],mahsolat[[#This Row],[كد]],data[گ],I$4)","v":0},{"$f":"SUMIFS(data[مبلغ],data[كد],mahsolat[[#This Row],[كد]],data[گ],J$4)","v":0},{"$f":"SUMIFS(data[مبلغ],data[كد],mahsolat[[#This Row],[كد]],data[گ],K$4)","v":0},{"$f":"SUMIFS(data[مبلغ],data[كد],mahsolat[[#This Row],[كد]],data[گ],L$4)","v":0},{"$f":"SUMIFS(data[مبلغ],data[كد],mahsolat[[#This Row],[كد]],data[گ],M$4)","v":0}]
[null,125,null,null,null,null,{"$f":"SUM(mahsolat[[#This Row],[مواد مصرفي]:[ساير هزينه ها]])","v":0},{"$f":"SUMIFS(data[مبلغ],data[كد],mahsolat[[#This Row],[كد]],data[گ],H$4)","v":0},{"$f":"SUMIFS(data[مبلغ],data[كد],mahsolat[[#This Row],[كد]],data[گ],I$4)","v":0},{"$f":"SUMIFS(data[مبلغ],data[كد],mahsolat[[#This Row],[كد]],data[گ],J$4)","v":0},{"$f":"SUMIFS(data[مبلغ],data[كد],mahsolat[[#This Row],[كد]],data[گ],K$4)","v":0},{"$f":"SUMIFS(data[مبلغ],data[كد],mahsolat[[#This Row],[كد]],data[گ],L$4)","v":0},{"$f":"SUMIFS(data[مبلغ],data[كد],mahsolat[[#This Row],[كد]],data[گ],M$4)","v":0}]
[null,126,null,null,null,null,{"$f":"SUM(mahsolat[[#This Row],[مواد مصرفي]:[ساير هزينه ها]])","v":0},{"$f":"SUMIFS(data[مبلغ],data[كد],mahsolat[[#This Row],[كد]],data[گ],H$4)","v":0},{"$f":"SUMIFS(data[مبلغ],data[كد],mahsolat[[#This Row],[كد]],data[گ],I$4)","v":0},{"$f":"SUMIFS(data[مبلغ],data[كد],mahsolat[[#This Row],[كد]],data[گ],J$4)","v":0},{"$f":"SUMIFS(data[مبلغ],data[كد],mahsolat[[#This Row],[كد]],data[گ],K$4)","v":0},{"$f":"SUMIFS(data[مبلغ],data[كد],mahsolat[[#This Row],[كد]],data[گ],L$4)","v":0},{"$f":"SUMIFS(data[مبلغ],data[كد],mahsolat[[#This Row],[كد]],data[گ],M$4)","v":0}]
[null,127,null,null,null,null,{"$f":"SUM(mahsolat[[#This Row],[مواد مصرفي]:[ساير هزينه ها]])","v":0},{"$f":"SUMIFS(data[مبلغ],data[كد],mahsolat[[#This Row],[كد]],data[گ],H$4)","v":0},{"$f":"SUMIFS(data[مبلغ],data[كد],mahsolat[[#This Row],[كد]],data[گ],I$4)","v":0},{"$f":"SUMIFS(data[مبلغ],data[كد],mahsolat[[#This Row],[كد]],data[گ],J$4)","v":0},{"$f":"SUMIFS(data[مبلغ],data[كد],mahsolat[[#This Row],[كد]],data[گ],K$4)","v":0},{"$f":"SUMIFS(data[مبلغ],data[كد],mahsolat[[#This Row],[كد]],data[گ],L$4)","v":0},{"$f":"SUMIFS(data[مبلغ],data[كد],mahsolat[[#This Row],[كد]],data[گ],M$4)","v":0}]
[null,128,null,null,null,null,{"$f":"SUM(mahsolat[[#This Row],[مواد مصرفي]:[ساير هزينه ها]])","v":0},{"$f":"SUMIFS(data[مبلغ],data[كد],mahsolat[[#This Row],[كد]],data[گ],H$4)","v":0},{"$f":"SUMIFS(data[مبلغ],data[كد],mahsolat[[#This Row],[كد]],data[گ],I$4)","v":0},{"$f":"SUMIFS(data[مبلغ],data[كد],mahsolat[[#This Row],[كد]],data[گ],J$4)","v":0},{"$f":"SUMIFS(data[مبلغ],data[كد],mahsolat[[#This Row],[كد]],data[گ],K$4)","v":0},{"$f":"SUMIFS(data[مبلغ],data[كد],mahsolat[[#This Row],[كد]],data[گ],L$4)","v":0},{"$f":"SUMIFS(data[مبلغ],data[كد],mahsolat[[#This Row],[كد]],data[گ],M$4)","v":0}]
[null,129,null,null,null,null,{"$f":"SUM(mahsolat[[#This Row],[مواد مصرفي]:[ساير هزينه ها]])","v":0},{"$f":"SUMIFS(data[مبلغ],data[كد],mahsolat[[#This Row],[كد]],data[گ],H$4)","v":0},{"$f":"SUMIFS(data[مبلغ],data[كد],mahsolat[[#This Row],[كد]],data[گ],I$4)","v":0},{"$f":"SUMIFS(data[مبلغ],data[كد],mahsolat[[#This Row],[كد]],data[گ],J$4)","v":0},{"$f":"SUMIFS(data[مبلغ],data[كد],mahsolat[[#This Row],[كد]],data[گ],K$4)","v":0},{"$f":"SUMIFS(data[مبلغ],data[كد],mahsolat[[#This Row],[كد]],data[گ],L$4)","v":0},{"$f":"SUMIFS(data[مبلغ],data[كد],mahsolat[[#This Row],[كد]],data[گ],M$4)","v":0}]
[null,130,null,null,null,null,{"$f":"SUM(mahsolat[[#This Row],[مواد مصرفي]:[ساير هزينه ها]])","v":0},{"$f":"SUMIFS(data[مبلغ],data[كد],mahsolat[[#This Row],[كد]],data[گ],H$4)","v":0},{"$f":"SUMIFS(data[مبلغ],data[كد],mahsolat[[#This Row],[كد]],data[گ],I$4)","v":0},{"$f":"SUMIFS(data[مبلغ],data[كد],mahsolat[[#This Row],[كد]],data[گ],J$4)","v":0},{"$f":"SUMIFS(data[مبلغ],data[كد],mahsolat[[#This Row],[كد]],data[گ],K$4)","v":0},{"$f":"SUMIFS(data[مبلغ],data[كد],mahsolat[[#This Row],[كد]],data[گ],L$4)","v":0},{"$f":"SUMIFS(data[مبلغ],data[كد],mahsolat[[#This Row],[كد]],data[گ],M$4)","v":0}]
[null,131,null,null,null,null,{"$f":"SUM(mahsolat[[#This Row],[مواد مصرفي]:[ساير هزينه ها]])","v":0},{"$f":"SUMIFS(data[مبلغ],data[كد],mahsolat[[#This Row],[كد]],data[گ],H$4)","v":0},{"$f":"SUMIFS(data[مبلغ],data[كد],mahsolat[[#This Row],[كد]],data[گ],I$4)","v":0},{"$f":"SUMIFS(data[مبلغ],data[كد],mahsolat[[#This Row],[كد]],data[گ],J$4)","v":0},{"$f":"SUMIFS(data[مبلغ],data[كد],mahsolat[[#This Row],[كد]],data[گ],K$4)","v":0},{"$f":"SUMIFS(data[مبلغ],data[كد],mahsolat[[#This Row],[كد]],data[گ],L$4)","v":0},{"$f":"SUMIFS(data[مبلغ],data[كد],mahsolat[[#This Row],[كد]],data[گ],M$4)","v":0}]
[null,132,null,null,null,null,{"$f":"SUM(mahsolat[[#This Row],[مواد مصرفي]:[ساير هزينه ها]])","v":0},{"$f":"SUMIFS(data[مبلغ],data[كد],mahsolat[[#This Row],[كد]],data[گ],H$4)","v":0},{"$f":"SUMIFS(data[مبلغ],data[كد],mahsolat[[#This Row],[كد]],data[گ],I$4)","v":0},{"$f":"SUMIFS(data[مبلغ],data[كد],mahsolat[[#This Row],[كد]],data[گ],J$4)","v":0},{"$f":"SUMIFS(data[مبلغ],data[كد],mahsolat[[#This Row],[كد]],data[گ],K$4)","v":0},{"$f":"SUMIFS(data[مبلغ],data[كد],mahsolat[[#This Row],[كد]],data[گ],L$4)","v":0},{"$f":"SUMIFS(data[مبلغ],data[كد],mahsolat[[#This Row],[كد]],data[گ],M$4)","v":0}]
[null,133,null,null,null,null,{"$f":"SUM(mahsolat[[#This Row],[مواد مصرفي]:[ساير هزينه ها]])","v":0},{"$f":"SUMIFS(data[مبلغ],data[كد],mahsolat[[#This Row],[كد]],data[گ],H$4)","v":0},{"$f":"SUMIFS(data[مبلغ],data[كد],mahsolat[[#This Row],[كد]],data[گ],I$4)","v":0},{"$f":"SUMIFS(data[مبلغ],data[كد],mahsolat[[#This Row],[كد]],data[گ],J$4)","v":0},{"$f":"SUMIFS(data[مبلغ],data[كد],mahsolat[[#This Row],[كد]],data[گ],K$4)","v":0},{"$f":"SUMIFS(data[مبلغ],data[كد],mahsolat[[#This Row],[كد]],data[گ],L$4)","v":0},{"$f":"SUMIFS(data[مبلغ],data[كد],mahsolat[[#This Row],[كد]],data[گ],M$4)","v":0}]
[null,134,null,null,null,null,{"$f":"SUM(mahsolat[[#This Row],[مواد مصرفي]:[ساير هزينه ها]])","v":0},{"$f":"SUMIFS(data[مبلغ],data[كد],mahsolat[[#This Row],[كد]],data[گ],H$4)","v":0},{"$f":"SUMIFS(data[مبلغ],data[كد],mahsolat[[#This Row],[كد]],data[گ],I$4)","v":0},{"$f":"SUMIFS(data[مبلغ],data[كد],mahsolat[[#This Row],[كد]],data[گ],J$4)","v":0},{"$f":"SUMIFS(data[مبلغ],data[كد],mahsolat[[#This Row],[كد]],data[گ],K$4)","v":0},{"$f":"SUMIFS(data[مبلغ],data[كد],mahsolat[[#This Row],[كد]],data[گ],L$4)","v":0},{"$f":"SUMIFS(data[مبلغ],data[كد],mahsolat[[#This Row],[كد]],data[گ],M$4)","v":0}]
[null,135,null,null,null,null,{"$f":"SUM(mahsolat[[#This Row],[مواد مصرفي]:[ساير هزينه ها]])","v":0},{"$f":"SUMIFS(data[مبلغ],data[كد],mahsolat[[#This Row],[كد]],data[گ],H$4)","v":0},{"$f":"SUMIFS(data[مبلغ],data[كد],mahsolat[[#This Row],[كد]],data[گ],I$4)","v":0},{"$f":"SUMIFS(data[مبلغ],data[كد],mahsolat[[#This Row],[كد]],data[گ],J$4)","v":0},{"$f":"SUMIFS(data[مبلغ],data[كد],mahsolat[[#This Row],[كد]],data[گ],K$4)","v":0},{"$f":"SUMIFS(data[مبلغ],data[كد],mahsolat[[#This Row],[كد]],data[گ],L$4)","v":0},{"$f":"SUMIFS(data[مبلغ],data[كد],mahsolat[[#This Row],[كد]],data[گ],M$4)","v":0}]
[null,136,null,null,null,null,{"$f":"SUM(mahsolat[[#This Row],[مواد مصرفي]:[ساير هزينه ها]])","v":0},{"$f":"SUMIFS(data[مبلغ],data[كد],mahsolat[[#This Row],[كد]],data[گ],H$4)","v":0},{"$f":"SUMIFS(data[مبلغ],data[كد],mahsolat[[#This Row],[كد]],data[گ],I$4)","v":0},{"$f":"SUMIFS(data[مبلغ],data[كد],mahsolat[[#This Row],[كد]],data[گ],J$4)","v":0},{"$f":"SUMIFS(data[مبلغ],data[كد],mahsolat[[#This Row],[كد]],data[گ],K$4)","v":0},{"$f":"SUMIFS(data[مبلغ],data[كد],mahsolat[[#This Row],[كد]],data[گ],L$4)","v":0},{"$f":"SUMIFS(data[مبلغ],data[كد],mahsolat[[#This Row],[كد]],data[گ],M$4)","v":0}]
[null,137,null,null,null,null,{"$f":"SUM(mahsolat[[#This Row],[مواد مصرفي]:[ساير هزينه ها]])","v":0},{"$f":"SUMIFS(data[مبلغ],data[كد],mahsolat[[#This Row],[كد]],data[گ],H$4)","v":0},{"$f":"SUMIFS(data[مبلغ],data[كد],mahsolat[[#This Row],[كد]],data[گ],I$4)","v":0},{"$f":"SUMIFS(data[مبلغ],data[كد],mahsolat[[#This Row],[كد]],data[گ],J$4)","v":0},{"$f":"SUMIFS(data[مبلغ],data[كد],mahsolat[[#This Row],[كد]],data[گ],K$4)","v":0},{"$f":"SUMIFS(data[مبلغ],data[كد],mahsolat[[#This Row],[كد]],data[گ],L$4)","v":0},{"$f":"SUMIFS(data[مبلغ],data[كد],mahsolat[[#This Row],[كد]],data[گ],M$4)","v":0}]
[null,138,null,null,null,null,{"$f":"SUM(mahsolat[[#This Row],[مواد مصرفي]:[ساير هزينه ها]])","v":0},{"$f":"SUMIFS(data[مبلغ],data[كد],mahsolat[[#This Row],[كد]],data[گ],H$4)","v":0},{"$f":"SUMIFS(data[مبلغ],data[كد],mahsolat[[#This Row],[كد]],data[گ],I$4)","v":0},{"$f":"SUMIFS(data[مبلغ],data[كد],mahsolat[[#This Row],[كد]],data[گ],J$4)","v":0},{"$f":"SUMIFS(data[مبلغ],data[كد],mahsolat[[#This Row],[كد]],data[گ],K$4)","v":0},{"$f":"SUMIFS(data[مبلغ],data[كد],mahsolat[[#This Row],[كد]],data[گ],L$4)","v":0},{"$f":"SUMIFS(data[مبلغ],data[كد],mahsolat[[#This Row],[كد]],data[گ],M$4)","v":0}]
[null,139,null,null,null,null,{"$f":"SUM(mahsolat[[#This Row],[مواد مصرفي]:[ساير هزينه ها]])","v":0},{"$f":"SUMIFS(data[مبلغ],data[كد],mahsolat[[#This Row],[كد]],data[گ],H$4)","v":0},{"$f":"SUMIFS(data[مبلغ],data[كد],mahsolat[[#This Row],[كد]],data[گ],I$4)","v":0},{"$f":"SUMIFS(data[مبلغ],data[كد],mahsolat[[#This Row],[كد]],data[گ],J$4)","v":0},{"$f":"SUMIFS(data[مبلغ],data[كد],mahsolat[[#This Row],[كد]],data[گ],K$4)","v":0},{"$f":"SUMIFS(data[مبلغ],data[كد],mahsolat[[#This Row],[كد]],data[گ],L$4)","v":0},{"$f":"SUMIFS(data[مبلغ],data[كد],mahsolat[[#This Row],[كد]],data[گ],M$4)","v":0}]
[null,140,null,null,null,null,{"$f":"SUM(mahsolat[[#This Row],[مواد مصرفي]:[ساير هزينه ها]])","v":0},{"$f":"SUMIFS(data[مبلغ],data[كد],mahsolat[[#This Row],[كد]],data[گ],H$4)","v":0},{"$f":"SUMIFS(data[مبلغ],data[كد],mahsolat[[#This Row],[كد]],data[گ],I$4)","v":0},{"$f":"SUMIFS(data[مبلغ],data[كد],mahsolat[[#This Row],[كد]],data[گ],J$4)","v":0},{"$f":"SUMIFS(data[مبلغ],data[كد],mahsolat[[#This Row],[كد]],data[گ],K$4)","v":0},{"$f":"SUMIFS(data[مبلغ],data[كد],mahsolat[[#This Row],[كد]],data[گ],L$4)","v":0},{"$f":"SUMIFS(data[مبلغ],data[كد],mahsolat[[#This Row],[كد]],data[گ],M$4)","v":0}]
[null,141,null,null,null,null,{"$f":"SUM(mahsolat[[#This Row],[مواد مصرفي]:[ساير هزينه ها]])","v":0},{"$f":"SUMIFS(data[مبلغ],data[كد],mahsolat[[#This Row],[كد]],data[گ],H$4)","v":0},{"$f":"SUMIFS(data[مبلغ],data[كد],mahsolat[[#This Row],[كد]],data[گ],I$4)","v":0},{"$f":"SUMIFS(data[مبلغ],data[كد],mahsolat[[#This Row],[كد]],data[گ],J$4)","v":0},{"$f":"SUMIFS(data[مبلغ],data[كد],mahsolat[[#This Row],[كد]],data[گ],K$4)","v":0},{"$f":"SUMIFS(data[مبلغ],data[كد],mahsolat[[#This Row],[كد]],data[گ],L$4)","v":0},{"$f":"SUMIFS(data[مبلغ],data[كد],mahsolat[[#This Row],[كد]],data[گ],M$4)","v":0}]
[null,142,null,null,null,null,{"$f":"SUM(mahsolat[[#This Row],[مواد مصرفي]:[ساير هزينه ها]])","v":0},{"$f":"SUMIFS(data[مبلغ],data[كد],mahsolat[[#This Row],[كد]],data[گ],H$4)","v":0},{"$f":"SUMIFS(data[مبلغ],data[كد],mahsolat[[#This Row],[كد]],data[گ],I$4)","v":0},{"$f":"SUMIFS(data[مبلغ],data[كد],mahsolat[[#This Row],[كد]],data[گ],J$4)","v":0},{"$f":"SUMIFS(data[مبلغ],data[كد],mahsolat[[#This Row],[كد]],data[گ],K$4)","v":0},{"$f":"SUMIFS(data[مبلغ],data[كد],mahsolat[[#This Row],[كد]],data[گ],L$4)","v":0},{"$f":"SUMIFS(data[مبلغ],data[كد],mahsolat[[#This Row],[كد]],data[گ],M$4)","v":0}]
[null,143,null,null,null,null,{"$f":"SUM(mahsolat[[#This Row],[مواد مصرفي]:[ساير هزينه ها]])","v":0},{"$f":"SUMIFS(data[مبلغ],data[كد],mahsolat[[#This Row],[كد]],data[گ],H$4)","v":0},{"$f":"SUMIFS(data[مبلغ],data[كد],mahsolat[[#This Row],[كد]],data[گ],I$4)","v":0},{"$f":"SUMIFS(data[مبلغ],data[كد],mahsolat[[#This Row],[كد]],data[گ],J$4)","v":0},{"$f":"SUMIFS(data[مبلغ],data[كد],mahsolat[[#This Row],[كد]],data[گ],K$4)","v":0},{"$f":"SUMIFS(data[مبلغ],data[كد],mahsolat[[#This Row],[كد]],data[گ],L$4)","v":0},{"$f":"SUMIFS(data[مبلغ],data[كد],mahsolat[[#This Row],[كد]],data[گ],M$4)","v":0}]
[null,144,null,null,null,null,{"$f":"SUM(mahsolat[[#This Row],[مواد مصرفي]:[ساير هزينه ها]])","v":0},{"$f":"SUMIFS(data[مبلغ],data[كد],mahsolat[[#This Row],[كد]],data[گ],H$4)","v":0},{"$f":"SUMIFS(data[مبلغ],data[كد],mahsolat[[#This Row],[كد]],data[گ],I$4)","v":0},{"$f":"SUMIFS(data[مبلغ],data[كد],mahsolat[[#This Row],[كد]],data[گ],J$4)","v":0},{"$f":"SUMIFS(data[مبلغ],data[كد],mahsolat[[#This Row],[كد]],data[گ],K$4)","v":0},{"$f":"SUMIFS(data[مبلغ],data[كد],mahsolat[[#This Row],[كد]],data[گ],L$4)","v":0},{"$f":"SUMIFS(data[مبلغ],data[كد],mahsolat[[#This Row],[كد]],data[گ],M$4)","v":0}]
[null,145,null,null,null,null,{"$f":"SUM(mahsolat[[#This Row],[مواد مصرفي]:[ساير هزينه ها]])","v":0},{"$f":"SUMIFS(data[مبلغ],data[كد],mahsolat[[#This Row],[كد]],data[گ],H$4)","v":0},{"$f":"SUMIFS(data[مبلغ],data[كد],mahsolat[[#This Row],[كد]],data[گ],I$4)","v":0},{"$f":"SUMIFS(data[مبلغ],data[كد],mahsolat[[#This Row],[كد]],data[گ],J$4)","v":0},{"$f":"SUMIFS(data[مبلغ],data[كد],mahsolat[[#This Row],[كد]],data[گ],K$4)","v":0},{"$f":"SUMIFS(data[مبلغ],data[كد],mahsolat[[#This Row],[كد]],data[گ],L$4)","v":0},{"$f":"SUMIFS(data[مبلغ],data[كد],mahsolat[[#This Row],[كد]],data[گ],M$4)","v":0}]
[null,146,null,null,null,null,{"$f":"SUM(mahsolat[[#This Row],[مواد مصرفي]:[ساير هزينه ها]])","v":0},{"$f":"SUMIFS(data[مبلغ],data[كد],mahsolat[[#This Row],[كد]],data[گ],H$4)","v":0},{"$f":"SUMIFS(data[مبلغ],data[كد],mahsolat[[#This Row],[كد]],data[گ],I$4)","v":0},{"$f":"SUMIFS(data[مبلغ],data[كد],mahsolat[[#This Row],[كد]],data[گ],J$4)","v":0},{"$f":"SUMIFS(data[مبلغ],data[كد],mahsolat[[#This Row],[كد]],data[گ],K$4)","v":0},{"$f":"SUMIFS(data[مبلغ],data[كد],mahsolat[[#This Row],[كد]],data[گ],L$4)","v":0},{"$f":"SUMIFS(data[مبلغ],data[كد],mahsolat[[#This Row],[كد]],data[گ],M$4)","v":0}]
[null,147,null,null,null,null,{"$f":"SUM(mahsolat[[#This Row],[مواد مصرفي]:[ساير هزينه ها]])","v":0},{"$f":"SUMIFS(data[مبلغ],data[كد],mahsolat[[#This Row],[كد]],data[گ],H$4)","v":0},{"$f":"SUMIFS(data[مبلغ],data[كد],mahsolat[[#This Row],[كد]],data[گ],I$4)","v":0},{"$f":"SUMIFS(data[مبلغ],data[كد],mahsolat[[#This Row],[كد]],data[گ],J$4)","v":0},{"$f":"SUMIFS(data[مبلغ],data[كد],mahsolat[[#This Row],[كد]],data[گ],K$4)","v":0},{"$f":"SUMIFS(data[مبلغ],data[كد],mahsolat[[#This Row],[كد]],data[گ],L$4)","v":0},{"$f":"SUMIFS(data[مبلغ],data[كد],mahsolat[[#This Row],[كد]],data[گ],M$4)","v":0}]
[null,148,null,null,null,null,{"$f":"SUM(mahsolat[[#This Row],[مواد مصرفي]:[ساير هزينه ها]])","v":0},{"$f":"SUMIFS(data[مبلغ],data[كد],mahsolat[[#This Row],[كد]],data[گ],H$4)","v":0},{"$f":"SUMIFS(data[مبلغ],data[كد],mahsolat[[#This Row],[كد]],data[گ],I$4)","v":0},{"$f":"SUMIFS(data[مبلغ],data[كد],mahsolat[[#This Row],[كد]],data[گ],J$4)","v":0},{"$f":"SUMIFS(data[مبلغ],data[كد],mahsolat[[#This Row],[كد]],data[گ],K$4)","v":0},{"$f":"SUMIFS(data[مبلغ],data[كد],mahsolat[[#This Row],[كد]],data[گ],L$4)","v":0},{"$f":"SUMIFS(data[مبلغ],data[كد],mahsolat[[#This Row],[كد]],data[گ],M$4)","v":0}]
[null,149,null,null,null,null,{"$f":"SUM(mahsolat[[#This Row],[مواد مصرفي]:[ساير هزينه ها]])","v":0},{"$f":"SUMIFS(data[مبلغ],data[كد],mahsolat[[#This Row],[كد]],data[گ],H$4)","v":0},{"$f":"SUMIFS(data[مبلغ],data[كد],mahsolat[[#This Row],[كد]],data[گ],I$4)","v":0},{"$f":"SUMIFS(data[مبلغ],data[كد],mahsolat[[#This Row],[كد]],data[گ],J$4)","v":0},{"$f":"SUMIFS(data[مبلغ],data[كد],mahsolat[[#This Row],[كد]],data[گ],K$4)","v":0},{"$f":"SUMIFS(data[مبلغ],data[كد],mahsolat[[#This Row],[كد]],data[گ],L$4)","v":0},{"$f":"SUMIFS(data[مبلغ],data[كد],mahsolat[[#This Row],[كد]],data[گ],M$4)","v":0}]
[null,150,null,null,null,null,{"$f":"SUM(mahsolat[[#This Row],[مواد مصرفي]:[ساير هزينه ها]])","v":0},{"$f":"SUMIFS(data[مبلغ],data[كد],mahsolat[[#This Row],[كد]],data[گ],H$4)","v":0},{"$f":"SUMIFS(data[مبلغ],data[كد],mahsolat[[#This Row],[كد]],data[گ],I$4)","v":0},{"$f":"SUMIFS(data[مبلغ],data[كد],mahsolat[[#This Row],[كد]],data[گ],J$4)","v":0},{"$f":"SUMIFS(data[مبلغ],data[كد],mahsolat[[#This Row],[كد]],data[گ],K$4)","v":0},{"$f":"SUMIFS(data[مبلغ],data[كد],mahsolat[[#This Row],[كد]],data[گ],L$4)","v":0},{"$f":"SUMIFS(data[مبلغ],data[كد],mahsolat[[#This Row],[كد]],data[گ],M$4)","v":0}]

{"sheet":"Sett","index":3,"n_rows":106,"n_cols":87,"rows_kept":106,"cut":false,"hidden":false,"merged":[[4,81,4,86],[4,1,4,7],[4,15,4,20],[4,29,4,34],[4,44,4,49],[4,63,4,68]]}
[]
[]
[]
[]
[null,"تعريف انواع مواد اوليه مصرفي",null,null,null,null,null,null,null,null,null,null,null,null,null,"تعريف انواع انرژي مصرفي",null,null,null,null,null,null,null,null,null,null,null,null,null,"تعريف انواع فرآيندها و كارهاي قابل انجام",null,null,null,null,null,null,null,null,null,null,null,null,null,null,"تعريف انواع تخصص هاي نيروي انساني بكار گرفته شده",null,null,null,null,null,null,null,null,null,null,null,null,null,null,null,null,null,null,"تعريف انواع بسته بندي كالاها و محصولات",null,null,null,null,null,null,null,null,null,null,null,null,null,null,null,null,null,"تعريف ساير هزينه هاي موجود و احتمالي"]
[null,"كد","عنوان","واحد","في واحد","گروه","دسته","توضيحات",null,null,null,null,null,null,null,"كد","عنوان","واحد","في واحد","دسته","توضيحات",null,null,null,null,null,null,null,null,"كد","عنوان كار","واحد","في واحد","دسته","توضيحات",null,null,null,null,null,null,null,null,null,"كد","عنوان تخصص","واحد","في واحد","دسته","توضيحات",null,null,null,null,null,null,null,null,null,null,null,null,null,"كد","عنوان بسته بندي","واحد","في واحد","دسته","توضيحات",null,null,null,null,null,null,null,null,null,null,null,null,"كد","عنوان هزينه","واحد","في واحد","دسته","توضيحات"]
[null,1,"ماده مصرفي شماره يك","عدد",2000,"گروه يك","دسته يك",null,null,null,null,null,null,null,null,1,"برق فشار قوي","كيلو وات",2300,"برق",null,null,null,null,null,null,null,null,null,1,"برش كاري و فرد دهي","ساعت",2100,"برش كاري",null,null,null,null,null,null,null,null,null,null,1,"اپراتور عمومي","نفر ساعت",4500,"عمومي",null,null,null,null,null,null,null,null,null,null,null,null,null,null,1,"كارتن مقوايي درجه يك","كيلو",450,"كارتن",null,null,null,null,null,null,null,null,null,null,null,null,null,1,"ماليات بر ارزش افزوده","ندارد",1,"ماليات"]
[null,2,"ماده مصرفي شماره دو","كيلو",3000,"گروه يك","دسته دو",null,null,null,null,null,null,null,null,2,"گاز طبيعي يارانه اي","متر مكعب",4500,"گاز",null,null,null,null,null,null,null,null,null,2,"جوش كاري و اتصلات","ساعت",1100,"جوش كاري",null,null,null,null,null,null,null,null,null,null,2,"استاد كار ماهر","نفر ساعت",5500,"حرفه اي",null,null,null,null,null,null,null,null,null,null,null,null,null,null,2,null,null,null,null,null,null,null,null,null,null,null,null,null,null,null,null,null,2]
[null,3,"ماده مصرفي شماره سه","گرم",500,"گروه دو","دسته يك",null,null,null,null,null,null,null,null,3,"سوخت جايگزين دوم","متر مكعب",2300,"سوخت",null,null,null,null,null,null,null,null,null,3,null,null,null,null,null,null,null,null,null,null,null,null,null,null,3,"كارشناس رشته مرتبط","نفر ساعت",6500,"كارشناس",null,null,null,null,null,null,null,null,null,null,null,null,null,null,3,null,null,null,null,null,null,null,null,null,null,null,null,null,null,null,null,null,3]
[null,4,null,null,null,null,null,null,null,null,null,null,null,null,null,4,null,null,null,null,null,null,null,null,null,null,null,null,null,4,null,null,null,null,null,null,null,null,null,null,null,null,null,null,4,"مدير توليد خط يا سالن","نفر ساعت",6700,"مديريت",null,null,null,null,null,null,null,null,null,null,null,null,null,null,4,null,null,null,null,null,null,null,null,null,null,null,null,null,null,null,null,null,4]
[null,5,null,null,null,null,null,null,null,null,null,null,null,null,null,5,null,null,null,null,null,null,null,null,null,null,null,null,null,5,null,null,null,null,null,null,null,null,null,null,null,null,null,null,5,"سرپرست توليد","نفر ساعت",5500,"حرفه اي",null,null,null,null,null,null,null,null,null,null,null,null,null,null,5,null,null,null,null,null,null,null,null,null,null,null,null,null,null,null,null,null,5]
[null,6,null,null,null,null,null,null,null,null,null,null,null,null,null,6,null,null,null,null,null,null,null,null,null,null,null,null,null,6,null,null,null,null,null,null,null,null,null,null,null,null,null,null,6,null,null,null,null,null,null,null,null,null,null,null,null,null,null,null,null,null,null,6,null,null,null,null,null,null,null,null,null,null,null,null,null,null,null,null,null,6]
[null,7,null,null,null,null,null,null,null,null,null,null,null,null,null,7,null,null,null,null,null,null,null,null,null,null,null,null,null,7,null,null,null,null,null,null,null,null,null,null,null,null,null,null,7,null,null,null,null,null,null,null,null,null,null,null,null,null,null,null,null,null,null,7,null,null,null,null,null,null,null,null,null,null,null,null,null,null,null,null,null,7]
[null,8,null,null,null,null,null,null,null,null,null,null,null,null,null,8,null,null,null,null,null,null,null,null,null,null,null,null,null,8,null,null,null,null,null,null,null,null,null,null,null,null,null,null,8,null,null,null,null,null,null,null,null,null,null,null,null,null,null,null,null,null,null,8,null,null,null,null,null,null,null,null,null,null,null,null,null,null,null,null,null,8]
[null,9,null,null,null,null,null,null,null,null,null,null,null,null,null,9,null,null,null,null,null,null,null,null,null,null,null,null,null,9,null,null,null,null,null,null,null,null,null,null,null,null,null,null,9,null,null,null,null,null,null,null,null,null,null,null,null,null,null,null,null,null,null,9,null,null,null,null,null,null,null,null,null,null,null,null,null,null,null,null,null,9]
[null,10,null,null,null,null,null,null,null,null,null,null,null,null,null,10,null,null,null,null,null,null,null,null,null,null,null,null,null,10,null,null,null,null,null,null,null,null,null,null,null,null,null,null,10,null,null,null,null,null,null,null,null,null,null,null,null,null,null,null,null,null,null,10,null,null,null,null,null,null,null,null,null,null,null,null,null,null,null,null,null,10]
[null,11,null,null,null,null,null,null,null,null,null,null,null,null,null,11,null,null,null,null,null,null,null,null,null,null,null,null,null,11,null,null,null,null,null,null,null,null,null,null,null,null,null,null,11,null,null,null,null,null,null,null,null,null,null,null,null,null,null,null,null,null,null,11,null,null,null,null,null,null,null,null,null,null,null,null,null,null,null,null,null,11]
[null,12,null,null,null,null,null,null,null,null,null,null,null,null,null,12,null,null,null,null,null,null,null,null,null,null,null,null,null,12,null,null,null,null,null,null,null,null,null,null,null,null,null,null,12,null,null,null,null,null,null,null,null,null,null,null,null,null,null,null,null,null,null,12,null,null,null,null,null,null,null,null,null,null,null,null,null,null,null,null,null,12]
[null,13,null,null,null,null,null,null,null,null,null,null,null,null,null,13,null,null,null,null,null,null,null,null,null,null,null,null,null,13,null,null,null,null,null,null,null,null,null,null,null,null,null,null,13,null,null,null,null,null,null,null,null,null,null,null,null,null,null,null,null,null,null,13,null,null,null,null,null,null,null,null,null,null,null,null,null,null,null,null,null,13]
[null,14,null,null,null,null,null,null,null,null,null,null,null,null,null,14,null,null,null,null,null,null,null,null,null,null,null,null,null,14,null,null,null,null,null,null,null,null,null,null,null,null,null,null,14,null,null,null,null,null,null,null,null,null,null,null,null,null,null,null,null,null,null,14,null,null,null,null,null,null,null,null,null,null,null,null,null,null,null,null,null,14]
[null,15,null,null,null,null,null,null,null,null,null,null,null,null,null,15,null,null,null,null,null,null,null,null,null,null,null,null,null,15,null,null,null,null,null,null,null,null,null,null,null,null,null,null,15,null,null,null,null,null,null,null,null,null,null,null,null,null,null,null,null,null,null,15,null,null,null,null,null,null,null,null,null,null,null,null,null,null,null,null,null,15]
[null,16,null,null,null,null,null,null,null,null,null,null,null,null,null,16,null,null,null,null,null,null,null,null,null,null,null,null,null,16,null,null,null,null,null,null,null,null,null,null,null,null,null,null,16,null,null,null,null,null,null,null,null,null,null,null,null,null,null,null,null,null,null,16,null,null,null,null,null,null,null,null,null,null,null,null,null,null,null,null,null,16]
[null,17,null,null,null,null,null,null,null,null,null,null,null,null,null,17,null,null,null,null,null,null,null,null,null,null,null,null,null,17,null,null,null,null,null,null,null,null,null,null,null,null,null,null,17,null,null,null,null,null,null,null,null,null,null,null,null,null,null,null,null,null,null,17,null,null,null,null,null,null,null,null,null,null,null,null,null,null,null,null,null,17]
[null,18,null,null,null,null,null,null,null,null,null,null,null,null,null,18,null,null,null,null,null,null,null,null,null,null,null,null,null,18,null,null,null,null,null,null,null,null,null,null,null,null,null,null,18,null,null,null,null,null,null,null,null,null,null,null,null,null,null,null,null,null,null,18,null,null,null,null,null,null,null,null,null,null,null,null,null,null,null,null,null,18]
[null,19,null,null,null,null,null,null,null,null,null,null,null,null,null,19,null,null,null,null,null,null,null,null,null,null,null,null,null,19,null,null,null,null,null,null,null,null,null,null,null,null,null,null,19,null,null,null,null,null,null,null,null,null,null,null,null,null,null,null,null,null,null,19,null,null,null,null,null,null,null,null,null,null,null,null,null,null,null,null,null,19]
[null,20,null,null,null,null,null,null,null,null,null,null,null,null,null,20,null,null,null,null,null,null,null,null,null,null,null,null,null,20,null,null,null,null,null,null,null,null,null,null,null,null,null,null,20,null,null,null,null,null,null,null,null,null,null,null,null,null,null,null,null,null,null,20,null,null,null,null,null,null,null,null,null,null,null,null,null,null,null,null,null,20]
[null,21,null,null,null,null,null,null,null,null,null,null,null,null,null,21,null,null,null,null,null,null,null,null,null,null,null,null,null,null,null,null,null,null,null,null,null,null,null,null,null,null,null,null,21,null,null,null,null,null,null,null,null,null,null,null,null,null,null,null,null,null,null,21,null,null,null,null,null,null,null,null,null,null,null,null,null,null,null,null,null,21]
[null,22,null,null,null,null,null,null,null,null,null,null,null,null,null,22,null,null,null,null,null,null,null,null,null,null,null,null,null,null,null,null,null,null,null,null,null,null,null,null,null,null,null,null,22,null,null,null,null,null,null,null,null,null,null,null,null,null,null,null,null,null,null,22,null,null,null,null,null,null,null,null,null,null,null,null,null,null,null,null,null,22]
[null,23,null,null,null,null,null,null,null,null,null,null,null,null,null,23,null,null,null,null,null,null,null,null,null,null,null,null,null,null,null,null,null,null,null,null,null,null,null,null,null,null,null,null,23,null,null,null,null,null,null,null,null,null,null,null,null,null,null,null,null,null,null,23,null,null,null,null,null,null,null,null,null,null,null,null,null,null,null,null,null,23]
[null,24,null,null,null,null,null,null,null,null,null,null,null,null,null,24,null,null,null,null,null,null,null,null,null,null,null,null,null,null,null,null,null,null,null,null,null,null,null,null,null,null,null,null,24,null,null,null,null,null,null,null,null,null,null,null,null,null,null,null,null,null,null,24,null,null,null,null,null,null,null,null,null,null,null,null,null,null,null,null,null,24]
[null,25,null,null,null,null,null,null,null,null,null,null,null,null,null,25,null,null,null,null,null,null,null,null,null,null,null,null,null,null,null,null,null,null,null,null,null,null,null,null,null,null,null,null,25,null,null,null,null,null,null,null,null,null,null,null,null,null,null,null,null,null,null,25,null,null,null,null,null,null,null,null,null,null,null,null,null,null,null,null,null,25]
[null,26,null,null,null,null,null,null,null,null,null,null,null,null,null,26,null,null,null,null,null,null,null,null,null,null,null,null,null,null,null,null,null,null,null,null,null,null,null,null,null,null,null,null,26,null,null,null,null,null,null,null,null,null,null,null,null,null,null,null,null,null,null,26,null,null,null,null,null,null,null,null,null,null,null,null,null,null,null,null,null,26]
[null,27,null,null,null,null,null,null,null,null,null,null,null,null,null,27,null,null,null,null,null,null,null,null,null,null,null,null,null,null,null,null,null,null,null,null,null,null,null,null,null,null,null,null,27,null,null,null,null,null,null,null,null,null,null,null,null,null,null,null,null,null,null,27,null,null,null,null,null,null,null,null,null,null,null,null,null,null,null,null,null,27]
[null,28,null,null,null,null,null,null,null,null,null,null,null,null,null,28,null,null,null,null,null,null,null,null,null,null,null,null,null,null,null,null,null,null,null,null,null,null,null,null,null,null,null,null,28,null,null,null,null,null,null,null,null,null,null,null,null,null,null,null,null,null,null,28,null,null,null,null,null,null,null,null,null,null,null,null,null,null,null,null,null,28]
[null,29,null,null,null,null,null,null,null,null,null,null,null,null,null,29,null,null,null,null,null,null,null,null,null,null,null,null,null,null,null,null,null,null,null,null,null,null,null,null,null,null,null,null,29,null,null,null,null,null,null,null,null,null,null,null,null,null,null,null,null,null,null,29,null,null,null,null,null,null,null,null,null,null,null,null,null,null,null,null,null,29]
[null,30,null,null,null,null,null,null,null,null,null,null,null,null,null,30,null,null,null,null,null,null,null,null,null,null,null,null,null,null,null,null,null,null,null,null,null,null,null,null,null,null,null,null,30,null,null,null,null,null,null,null,null,null,null,null,null,null,null,null,null,null,null,30,null,null,null,null,null,null,null,null,null,null,null,null,null,null,null,null,null,30]
[null,31,null,null,null,null,null,null,null,null,null,null,null,null,null,31,null,null,null,null,null,null,null,null,null,null,null,null,null,null,null,null,null,null,null,null,null,null,null,null,null,null,null,null,31,null,null,null,null,null,null,null,null,null,null,null,null,null,null,null,null,null,null,31,null,null,null,null,null,null,null,null,null,null,null,null,null,null,null,null,null,31]
[null,32,null,null,null,null,null,null,null,null,null,null,null,null,null,32,null,null,null,null,null,null,null,null,null,null,null,null,null,null,null,null,null,null,null,null,null,null,null,null,null,null,null,null,32,null,null,null,null,null,null,null,null,null,null,null,null,null,null,null,null,null,null,32,null,null,null,null,null,null,null,null,null,null,null,null,null,null,null,null,null,32]
[null,33,null,null,null,null,null,null,null,null,null,null,null,null,null,33,null,null,null,null,null,null,null,null,null,null,null,null,null,null,null,null,null,null,null,null,null,null,null,null,null,null,null,null,33,null,null,null,null,null,null,null,null,null,null,null,null,null,null,null,null,null,null,33,null,null,null,null,null,null,null,null,null,null,null,null,null,null,null,null,null,33]
[null,34,null,null,null,null,null,null,null,null,null,null,null,null,null,34,null,null,null,null,null,null,null,null,null,null,null,null,null,null,null,null,null,null,null,null,null,null,null,null,null,null,null,null,34,null,null,null,null,null,null,null,null,null,null,null,null,null,null,null,null,null,null,34,null,null,null,null,null,null,null,null,null,null,null,null,null,null,null,null,null,34]
[null,35,null,null,null,null,null,null,null,null,null,null,null,null,null,35,null,null,null,null,null,null,null,null,null,null,null,null,null,null,null,null,null,null,null,null,null,null,null,null,null,null,null,null,35,null,null,null,null,null,null,null,null,null,null,null,null,null,null,null,null,null,null,35,null,null,null,null,null,null,null,null,null,null,null,null,null,null,null,null,null,35]
[null,36,null,null,null,null,null,null,null,null,null,null,null,null,null,36,null,null,null,null,null,null,null,null,null,null,null,null,null,null,null,null,null,null,null,null,null,null,null,null,null,null,null,null,36,null,null,null,null,null,null,null,null,null,null,null,null,null,null,null,null,null,null,36,null,null,null,null,null,null,null,null,null,null,null,null,null,null,null,null,null,36]
[null,37,null,null,null,null,null,null,null,null,null,null,null,null,null,37,null,null,null,null,null,null,null,null,null,null,null,null,null,null,null,null,null,null,null,null,null,null,null,null,null,null,null,null,37,null,null,null,null,null,null,null,null,null,null,null,null,null,null,null,null,null,null,37,null,null,null,null,null,null,null,null,null,null,null,null,null,null,null,null,null,37]
[null,38,null,null,null,null,null,null,null,null,null,null,null,null,null,38,null,null,null,null,null,null,null,null,null,null,null,null,null,null,null,null,null,null,null,null,null,null,null,null,null,null,null,null,38,null,null,null,null,null,null,null,null,null,null,null,null,null,null,null,null,null,null,38,null,null,null,null,null,null,null,null,null,null,null,null,null,null,null,null,null,38]
[null,39,null,null,null,null,null,null,null,null,null,null,null,null,null,39,null,null,null,null,null,null,null,null,null,null,null,null,null,null,null,null,null,null,null,null,null,null,null,null,null,null,null,null,39,null,null,null,null,null,null,null,null,null,null,null,null,null,null,null,null,null,null,39,null,null,null,null,null,null,null,null,null,null,null,null,null,null,null,null,null,39]
[null,40,null,null,null,null,null,null,null,null,null,null,null,null,null,40,null,null,null,null,null,null,null,null,null,null,null,null,null,null,null,null,null,null,null,null,null,null,null,null,null,null,null,null,40,null,null,null,null,null,null,null,null,null,null,null,null,null,null,null,null,null,null,40,null,null,null,null,null,null,null,null,null,null,null,null,null,null,null,null,null,40]
[null,41,null,null,null,null,null,null,null,null,null,null,null,null,null,41,null,null,null,null,null,null,null,null,null,null,null,null,null,null,null,null,null,null,null,null,null,null,null,null,null,null,null,null,41,null,null,null,null,null,null,null,null,null,null,null,null,null,null,null,null,null,null,41,null,null,null,null,null,null,null,null,null,null,null,null,null,null,null,null,null,41]
[null,42,null,null,null,null,null,null,null,null,null,null,null,null,null,42,null,null,null,null,null,null,null,null,null,null,null,null,null,null,null,null,null,null,null,null,null,null,null,null,null,null,null,null,42,null,null,null,null,null,null,null,null,null,null,null,null,null,null,null,null,null,null,42,null,null,null,null,null,null,null,null,null,null,null,null,null,null,null,null,null,42]
[null,43,null,null,null,null,null,null,null,null,null,null,null,null,null,43,null,null,null,null,null,null,null,null,null,null,null,null,null,null,null,null,null,null,null,null,null,null,null,null,null,null,null,null,43,null,null,null,null,null,null,null,null,null,null,null,null,null,null,null,null,null,null,43,null,null,null,null,null,null,null,null,null,null,null,null,null,null,null,null,null,43]
[null,44,null,null,null,null,null,null,null,null,null,null,null,null,null,44,null,null,null,null,null,null,null,null,null,null,null,null,null,null,null,null,null,null,null,null,null,null,null,null,null,null,null,null,44,null,null,null,null,null,null,null,null,null,null,null,null,null,null,null,null,null,null,44,null,null,null,null,null,null,null,null,null,null,null,null,null,null,null,null,null,44]
[null,45,null,null,null,null,null,null,null,null,null,null,null,null,null,45,null,null,null,null,null,null,null,null,null,null,null,null,null,null,null,null,null,null,null,null,null,null,null,null,null,null,null,null,45,null,null,null,null,null,null,null,null,null,null,null,null,null,null,null,null,null,null,45,null,null,null,null,null,null,null,null,null,null,null,null,null,null,null,null,null,45]
[null,46,null,null,null,null,null,null,null,null,null,null,null,null,null,46,null,null,null,null,null,null,null,null,null,null,null,null,null,null,null,null,null,null,null,null,null,null,null,null,null,null,null,null,46,null,null,null,null,null,null,null,null,null,null,null,null,null,null,null,null,null,null,46,null,null,null,null,null,null,null,null,null,null,null,null,null,null,null,null,null,46]
[null,47,null,null,null,null,null,null,null,null,null,null,null,null,null,47,null,null,null,null,null,null,null,null,null,null,null,null,null,null,null,null,null,null,null,null,null,null,null,null,null,null,null,null,47,null,null,null,null,null,null,null,null,null,null,null,null,null,null,null,null,null,null,47,null,null,null,null,null,null,null,null,null,null,null,null,null,null,null,null,null,47]
[null,48,null,null,null,null,null,null,null,null,null,null,null,null,null,48,null,null,null,null,null,null,null,null,null,null,null,null,null,null,null,null,null,null,null,null,null,null,null,null,null,null,null,null,48,null,null,null,null,null,null,null,null,null,null,null,null,null,null,null,null,null,null,48,null,null,null,null,null,null,null,null,null,null,null,null,null,null,null,null,null,48]
[null,49,null,null,null,null,null,null,null,null,null,null,null,null,null,49,null,null,null,null,null,null,null,null,null,null,null,null,null,null,null,null,null,null,null,null,null,null,null,null,null,null,null,null,49,null,null,null,null,null,null,null,null,null,null,null,null,null,null,null,null,null,null,49,null,null,null,null,null,null,null,null,null,null,null,null,null,null,null,null,null,49]
[null,50,null,null,null,null,null,null,null,null,null,null,null,null,null,50,null,null,null,null,null,null,null,null,null,null,null,null,null,null,null,null,null,null,null,null,null,null,null,null,null,null,null,null,50,null,null,null,null,null,null,null,null,null,null,null,null,null,null,null,null,null,null,50,null,null,null,null,null,null,null,null,null,null,null,null,null,null,null,null,null,50]
[null,51]
[null,52]
[null,53]
[null,54]
[null,55]
[null,56]
[null,57]
[null,58]
[null,59]
[null,60]
[null,61]
[null,62]
[null,63]
[null,64]
[null,65]
[null,66]
[null,67]
[null,68]
[null,69]
[null,70]
[null,71]
[null,72]
[null,73]
[null,74]
[null,75]
[null,76]
[null,77]
[null,78]
[null,79]
[null,80]
[null,81]
[null,82]
[null,83]
[null,84]
[null,85]
[null,86]
[null,87]
[null,88]
[null,89]
[null,90]
[null,91]
[null,92]
[null,93]
[null,94]
[null,95]
[null,96]
[null,97]
[null,98]
[null,99]
[null,100]